{"text_format":"1","workbook":"xlsx","n_sheets":11,"sheets":["基本メニュー","情報登録","登録情報一覧","(参照)登録情報一覧登録規則","変換マスタ(検査材料)","変換マスタ(菌)","変換マスタ(抗菌薬)","マスタ(検査材料)","マスタ(菌)","マスタ(抗菌薬)","入力規則"],"not_rendered":{"charts":0,"images":1,"macros":1,"external_links":0,"defined_names":289,"comments":0,"pivot_tables":0},"unopened":[],"bounds":{"document_bytes":16777216,"sheet_cells":100000,"rows_first":2000,"rows_last":500,"rows_between":2000,"halvings":0,"cell_chars":16384,"cell_head_chars":4096},"cells_cut":0,"cells_raw":0,"read":"whole","date_system":"1900"}

{"sheet":"基本メニュー","index":0,"n_rows":38,"n_cols":26,"rows_kept":38,"cut":false,"hidden":false,"merged":[[0,25,0,27],[39,16,39,26],[33,5,34,8],[33,9,34,12],[33,13,34,14],[33,15,34,17],[33,18,34,19],[29,11,29,12],[26,11,26,12],[9,2,10,13],[9,14,10,26],[4,14,5,26],[26,6,26,10],[27,6,27,10],[28,6,28,10],[29,6,29,10],[27,11,27,12],[28,11,28,12]]}
[null,null,null,null,null,null,null,null,null,null,null,null,null,null,null,null,null,null,null,null,null,null,null,null,null,"Ver.1.2"]
[]
[]
[]
[null,null,null,null,null,null,null,null,null,null,null,null,null,null,"データ登録用ツール"]
[]
[]
[]
[null,null,"下記を基本情報として設定してください。"]
[null,null,"医療機関コード(７桁のレセプトコード)",null,null,null,null,null,null,null,null,null,null,null,1234567]
[]
[]
[null,null,"<使用方法>"]
[null,null,null,"1.データ登録"]
[null,null,null,null,"(手入力でデータを登録する場合)"]
[null,null,null,null,"1-A.「情報登録」シートにて、データを入力し「登録」ボタンを押します。"]
[null,null,null,null,null,"※ 登録ボタンを押すとデータが「登録情報一覧」シートに蓄積されます。"]
[null,null,null,null,null,"※ 複数データを登録する場合は、こちらを繰り返し実行してください。"]
[]
[null,null,null,null,"(外部システムからデータを登録する場合)"]
[null,null,null,null,"1-B.「登録情報一覧」シートへ、外部データを各項目の形式に合わせて貼り付けます。"]
[null,null,null,null,null,"※ 各項目の形式は「(参照)登録情報一覧登録規則」シートを参照してください。"]
[]
[null,null,null,null,null,"コードを変換する必要がある場合(外部システムのコードをそのまま貼り付けた"]
[null,null,null,null,null,"場合等)は、下記の対応するマスタにチェックを入れてください。"]
[null,null,null,null,null,"※ 別途各変換マスタシート(「変換マスタ(○○)」シート参照)の作成が必要です。"]
[null,null,null,null,null,null,"マスタ",null,null,null,null,"変換"]
[null,null,null,null,null,null,"検査材料"]
[null,null,null,null,null,null,"菌"]
[null,null,null,null,null,null,"抗菌薬"]
[]
[null,null,null,"2.データ出力"]
[null,null,null,null,"出力対象年月を入力してください。"]
[null,null,null,null,null,"対象年月",null,null,null,null,null,null,null,"年",null,null,null,null,"月"]
[]
[]
[]
[null,null,null,null,"下記のボタンを押し、MINIS用の登録用ファイルを作成します。"]

{"sheet":"情報登録","index":1,"n_rows":105,"n_cols":93,"rows_kept":105,"cut":false,"hidden":false,"merged":[[104,83,104,87],[104,88,104,91],[101,83,101,87],[101,88,101,115],[102,83,102,87],[102,88,102,91],[103,83,103,87],[103,88,103,91],[98,83,98,87],[98,88,98,91],[99,92,99,115],[100,83,100,87],[100,88,100,91],[100,92,100,115],[95,83,95,87],[95,88,95,115],[96,83,96,87],[96,88,96,91],[97,83,97,87],[97,88,97,91],[92,83,92,87],[92,88,92,91],[93,92,93,115],[94,83,94,87],[94,88,94,91],[94,92,94,115],[89,83,89,87],[89,88,89,115],[90,83,90,87],[90,88,90,91],[91,83,91,87],[91,88,91,91],[86,83,86,87],[86,88,86,91],[87,92,87,115],[88,83,88,87],[88,88,88,91],[88,92,88,115],[83,83,83,87],[83,88,83,115],[84,83,84,87],[84,88,84,91],[85,83,85,87],[85,88,85,91],[80,83,80,87],[80,88,80,91],[81,92,81,115],[82,83,82,87],[82,88,82,91],[82,92,82,115],[77,83,77,87],[77,88,77,115],[78,83,78,87],[78,88,78,91],[79,83,79,87],[79,88,79,91],[74,83,74,87],[74,88,74,91],[75,92,75,115],[76,83,76,87],[76,88,76,91],[76,92,76,115],[71,83,71,87],[71,88,71,115],[72,83,72,87],[72,88,72,91],[73,83,73,87],[73,88,73,91],[68,83,68,87],[68,88,68,91],[69,92,69,115],[70,83,70,87],[70,88,70,91],[70,92,70,115],[65,83,65,87],[65,88,65,115],[66,83,66,87],[66,88,66,91],[67,83,67,87],[67,88,67,91],[62,83,62,87],[62,88,62,91],[63,92,63,115],[64,83,64,87],[64,88,64,91],[64,92,64,115],[59,83,59,87],[59,88,59,115],[60,83,60,87],[60,88,60,91],[61,83,61,87],[61,88,61,91],[56,83,56,87],[56,88,56,91],[57,92,57,115],[58,83,58,87],[58,88,58,91],[58,92,58,115],[53,83,53,87],[53,88,53,115],[54,83,54,87],[54,88,54,91],[55,83,55,87],[55,88,55,91],[50,83,50,87],[50,88,50,91],[51,92,51,115],[52,83,52,87],[52,88,52,91],[52,92,52,115],[47,83,47,87],[47,88,47,115],[48,83,48,87],[48,88,48,91],[49,83,49,87],[49,88,49,91],[44,83,44,87],[44,88,44,91],[45,92,45,115],[46,83,46,87],[46,88,46,91],[46,92,46,115],[41,83,41,87],[41,88,41,115],[42,83,42,87],[42,88,42,91],[43,83,43,87],[43,88,43,91],[38,83,38,87],[38,88,38,91],[39,92,39,115],[40,83,40,87],[40,88,40,91],[40,92,40,115],[35,83,35,87],[35,88,35,115],[36,83,36,87],[36,88,36,91],[37,83,37,87],[37,88,37,91],[32,83,32,87],[32,88,32,91],[33,92,33,115],[34,83,34,87],[34,88,34,91],[34,92,34,115],[29,83,29,87],[29,88,29,115],[30,83,30,87],[30,88,30,91],[31,83,31,87],[31,88,31,91],[26,83,26,87],[26,88,26,91],[27,92,27,115],[28,83,28,87],[28,88,28,91],[28,92,28,115],[23,83,23,87],[23,88,23,115],[24,83,24,87],[24,88,24,91],[25,83,25,87],[25,88,25,91],[20,83,20,87],[20,88,20,91],[21,92,21,115],[22,83,22,87],[22,88,22,91],[22,92,22,115],[17,83,17,87],[17,88,17,115],[18,83,18,87],[18,88,18,91],[19,83,19,87],[19,88,19,91],[13,82,13,87],[13,88,13,91],[13,92,13,115],[15,92,15,115],[16,83,16,87],[16,88,16,91],[16,92,16,115],[102,44,102,48],[102,49,102,52],[103,44,103,48],[103,49,103,52],[104,44,104,48],[104,49,104,52],[99,53,99,76],[100,44,100,48],[100,49,100,52],[100,53,100,76],[101,44,101,48],[101,49,101,76],[96,44,96,48],[96,49,96,52],[97,44,97,48],[97,49,97,52],[98,44,98,48],[98,49,98,52],[93,53,93,76],[94,44,94,48],[94,49,94,52],[94,53,94,76],[95,44,95,48],[95,49,95,76],[90,44,90,48],[90,49,90,52],[91,44,91,48],[91,49,91,52],[92,44,92,48],[92,49,92,52],[88,44,88,48],[88,49,88,52],[88,53,88,76],[89,44,89,48],[89,49,89,76],[85,44,85,48],[85,49,85,52],[86,44,86,48],[86,49,86,52],[87,53,87,76],[82,53,82,76],[83,44,83,48],[83,49,83,76],[84,44,84,48],[84,49,84,52],[82,44,82,48],[82,49,82,52],[70,44,70,48],[70,49,70,52],[72,44,72,48],[72,49,72,52],[70,53,70,76],[71,44,71,48],[71,49,71,76],[67,44,67,48],[68,44,68,48],[68,49,68,52],[67,49,67,52],[69,53,69,76],[81,53,81,76],[76,44,76,48],[76,49,76,52],[78,44,78,48],[78,49,78,52],[76,53,76,76],[77,44,77,48],[77,49,77,76],[73,44,73,48],[74,44,74,48],[74,49,74,52],[73,49,73,52],[75,53,75,76],[79,44,79,48],[80,44,80,48],[80,49,80,52],[79,49,79,52],[66,49,66,52],[64,53,64,76],[65,44,65,48],[65,49,65,76],[61,44,61,48],[62,44,62,48],[62,49,62,52],[61,49,61,52],[63,53,63,76],[64,44,64,48],[64,49,64,52],[66,44,66,48],[58,44,58,48],[58,49,58,52],[60,44,60,48],[60,49,60,52],[58,53,58,76],[59,44,59,48],[59,49,59,76],[55,44,55,48],[56,44,56,48],[56,49,56,52],[55,49,55,52],[57,53,57,76],[52,44,52,48],[52,49,52,52],[54,44,54,48],[54,49,54,52],[52,53,52,76],[53,44,53,48],[53,49,53,76],[49,44,49,48],[50,44,50,48],[50,49,50,52],[49,49,49,52],[51,53,51,76],[46,44,46,48],[46,49,46,52],[48,44,48,48],[48,49,48,52],[46,53,46,76],[47,44,47,48],[47,49,47,76],[43,44,43,48],[44,44,44,48],[44,49,44,52],[43,49,43,52],[45,53,45,76],[40,44,40,48],[40,49,40,52],[42,44,42,48],[42,49,42,52],[40,53,40,76],[41,44,41,48],[41,49,41,76],[37,44,37,48],[38,44,38,48],[38,49,38,52],[37,49,37,52],[39,53,39,76],[34,44,34,48],[34,49,34,52],[36,44,36,48],[36,49,36,52],[34,53,34,76],[35,44,35,48],[35,49,35,76],[31,44,31,48],[32,44,32,48],[32,49,32,52],[31,49,31,52],[33,53,33,76],[28,44,28,48],[28,49,28,52],[30,44,30,48],[30,49,30,52],[28,53,28,76],[29,44,29,48],[29,49,29,76],[25,44,25,48],[26,44,26,48],[26,49,26,52],[25,49,25,52],[27,53,27,76],[22,44,22,48],[22,49,22,52],[24,44,24,48],[24,49,24,52],[22,53,22,76],[23,44,23,48],[23,49,23,76],[19,44,19,48],[20,44,20,48],[20,49,20,52],[19,49,19,52],[21,53,21,76],[16,44,16,48],[16,49,16,52],[18,44,18,48],[18,49,18,52],[16,53,16,76],[17,44,17,48],[17,49,17,76],[13,43,13,48],[13,49,13,52],[13,53,13,76],[15,53,15,76],[104,5,104,9],[104,10,104,13],[101,5,101,9],[101,10,101,37],[102,5,102,9],[102,10,102,13],[103,5,103,9],[103,10,103,13],[98,5,98,9],[98,10,98,13],[100,5,100,9],[100,10,100,13],[100,14,100,37],[99,14,99,37],[95,5,95,9],[95,10,95,37],[96,5,96,9],[96,10,96,13],[97,5,97,9],[97,10,97,13],[92,5,92,9],[92,10,92,13],[94,5,94,9],[94,10,94,13],[94,14,94,37],[93,14,93,37],[89,5,89,9],[89,10,89,37],[90,5,90,9],[90,10,90,13],[91,5,91,9],[91,10,91,13],[86,5,86,9],[86,10,86,13],[88,5,88,9],[88,10,88,13],[88,14,88,37],[87,14,87,37],[83,5,83,9],[83,10,83,37],[84,5,84,9],[84,10,84,13],[85,5,85,9],[85,10,85,13],[80,5,80,9],[80,10,80,13],[82,5,82,9],[82,10,82,13],[82,14,82,37],[81,14,81,37],[77,5,77,9],[77,10,77,37],[78,5,78,9],[78,10,78,13],[79,5,79,9],[79,10,79,13],[74,5,74,9],[74,10,74,13],[76,5,76,9],[76,10,76,13],[76,14,76,37],[75,14,75,37],[71,5,71,9],[71,10,71,37],[72,5,72,9],[72,10,72,13],[73,5,73,9],[73,10,73,13],[68,5,68,9],[68,10,68,13],[70,5,70,9],[70,10,70,13],[70,14,70,37],[69,14,69,37],[65,5,65,9],[65,10,65,37],[66,5,66,9],[66,10,66,13],[67,5,67,9],[67,10,67,13],[62,5,62,9],[62,10,62,13],[64,5,64,9],[64,10,64,13],[64,14,64,37],[63,14,63,37],[59,5,59,9],[59,10,59,37],[60,5,60,9],[60,10,60,13],[61,5,61,9],[61,10,61,13],[55,10,55,13],[56,10,56,13],[58,5,58,9],[58,10,58,13],[58,14,58,37],[56,5,56,9],[55,5,55,9],[57,14,57,37],[52,10,52,13],[52,14,52,37],[53,5,53,9],[53,10,53,37],[54,10,54,13],[47,10,47,37],[48,10,48,13],[49,5,49,9],[49,10,49,13],[50,10,50,13],[51,14,51,37],[42,10,42,13],[43,10,43,13],[44,10,44,13],[46,10,46,13],[46,14,46,37],[34,14,34,37],[35,10,35,37],[40,10,40,13],[40,14,40,37],[39,14,39,37],[45,14,45,37],[41,5,41,9],[41,10,41,37],[36,10,36,13],[37,5,37,9],[37,10,37,13],[38,10,38,13],[34,10,34,13],[31,10,31,13],[32,10,32,13],[40,5,40,9],[31,5,31,9],[32,5,32,9],[34,5,34,9],[35,5,35,9],[36,5,36,9],[38,5,38,9],[33,14,33,37],[28,10,28,13],[28,14,28,37],[29,5,29,9],[29,10,29,37],[30,10,30,13],[24,5,24,9],[24,10,24,13],[25,5,25,9],[25,10,25,13],[26,10,26,13],[26,5,26,9],[28,5,28,9],[30,5,30,9],[27,14,27,37],[22,5,22,9],[22,10,22,13],[22,14,22,37],[23,5,23,9],[23,10,23,37],[13,4,13,9],[5,3,5,9],[6,3,6,9],[7,3,7,9],[8,3,8,9],[9,3,9,9],[18,5,18,9],[20,5,20,9],[19,5,19,9],[18,10,18,13],[20,10,20,13],[19,10,19,13],[5,10,5,36],[15,14,15,37],[21,14,21,37],[42,5,42,9],[43,5,43,9],[44,5,44,9],[46,5,46,9],[47,5,47,9],[48,5,48,9],[50,5,50,9],[52,5,52,9],[54,5,54,9],[1,1,2,37],[13,10,13,13],[13,14,13,37],[16,10,16,13],[16,14,16,37],[17,10,17,37],[6,10,6,36],[7,10,7,36],[8,10,8,36],[9,10,9,36],[16,5,16,9],[17,5,17,9]]}
[]
[null,"情報登録"]
[]
[]
[null,null,"患者・検体基本情報",null,null,null,null,null,null,null,null,"※ こちらはすべて必須項目です。"]
[null,null,null,"患者ID",null,null,null,null,null,null,""]
[null,null,null,"入院外来"]
[null,null,null,"検査材料"]
[null,null,null,"検体提出日"]
[null,null,null,"検体番号"]
[]
[null,null,"細菌検査結果",null,null,null,null,null,null,null,null,"※ 菌が分離しなかった場合は、下記の入力は不要です。"]
[null,null,null,"菌1",null,null,null,null,null,null,null,null,null,null,null,null,null,null,null,null,null,null,null,null,null,null,null,null,null,null,null,null,null,null,null,null,null,null,null,null,null,null,"菌2",null,null,null,null,null,null,null,null,null,null,null,null,null,null,null,null,null,null,null,null,null,null,null,null,null,null,null,null,null,null,null,null,null,null,null,null,null,null,"菌3"]
[null,null,null,null,"菌名",null,null,null,null,null,null,null,null,null,null,null,null,null,null,null,null,null,null,null,null,null,null,null,null,null,null,null,null,null,null,null,null,null,null,null,null,null,null,"菌名",null,null,null,null,null,null,null,null,null,null,null,null,null,null,null,null,null,null,null,null,null,null,null,null,null,null,null,null,null,null,null,null,null,null,null,null,null,null,"菌名"]
[]
[null,null,null,null,"抗菌薬1",null,null,null,null,null,null,null,null,null,{"$f":"IF(菌_1_名称<>\"\",菌_1_名称,\"\")","v":""},null,null,null,null,null,null,null,null,null,null,null,null,null,null,null,null,null,null,null,null,null,null,null,null,null,null,null,null,"抗菌薬1",null,null,null,null,null,null,null,null,null,{"$f":"IF(菌_2_名称<>\"\",菌_2_名称,\"\")","v":""},null,null,null,null,null,null,null,null,null,null,null,null,null,null,null,null,null,null,null,null,null,null,null,null,null,null,null,null,"抗菌薬1",null,null,null,null,null,null,null,null,null,{"$f":"IF(菌_3_名称<>\"\",菌_3_名称,\"\")","v":""}]
[null,null,null,null,null,"抗菌薬",null,null,null,null,null,null,null,null,null,null,null,null,null,null,null,null,null,null,null,null,null,null,null,null,null,null,null,null,null,null,null,null,null,null,null,null,null,null,"抗菌薬",null,null,null,null,null,null,null,null,null,null,null,null,null,null,null,null,null,null,null,null,null,null,null,null,null,null,null,null,null,null,null,null,null,null,null,null,null,null,"抗菌薬"]
[null,null,null,null,null,"検査方法",null,null,null,null,null,null,null,null,null,null,null,null,null,null,null,null,null,null,null,null,null,null,null,null,null,null,null,null,null,null,null,null,null,null,null,null,null,null,"検査方法",null,null,null,null,null,null,null,null,null,null,null,null,null,null,null,null,null,null,null,null,null,null,null,null,null,null,null,null,null,null,null,null,null,null,null,null,null,null,"検査方法"]
[null,null,null,null,null,"仕切記号",null,null,null,null,null,null,null,null,null,null,null,null,null,null,null,null,null,null,null,null,null,null,null,null,null,null,null,null,null,null,null,null,null,null,null,null,null,null,"仕切記号",null,null,null,null,null,null,null,null,null,null,null,null,null,null,null,null,null,null,null,null,null,null,null,null,null,null,null,null,null,null,null,null,null,null,null,null,null,null,"仕切記号"]
[null,null,null,null,null,"判定値",null,null,null,null,null,null,null,null,null,null,null,null,null,null,null,null,null,null,null,null,null,null,null,null,null,null,null,null,null,null,null,null,null,null,null,null,null,null,"判定値",null,null,null,null,null,null,null,null,null,null,null,null,null,null,null,null,null,null,null,null,null,null,null,null,null,null,null,null,null,null,null,null,null,null,null,null,null,null,"判定値"]
[null,null,null,null,null,"SIR判定",null,null,null,null,null,null,null,null,null,null,null,null,null,null,null,null,null,null,null,null,null,null,null,null,null,null,null,null,null,null,null,null,null,null,null,null,null,null,"SIR判定",null,null,null,null,null,null,null,null,null,null,null,null,null,null,null,null,null,null,null,null,null,null,null,null,null,null,null,null,null,null,null,null,null,null,null,null,null,null,"SIR判定"]
[null,null,null,null,"抗菌薬2",null,null,null,null,null,null,null,null,null,{"$f":"IF(菌_1_名称<>\"\",菌_1_名称,\"\")","v":""},null,null,null,null,null,null,null,null,null,null,null,null,null,null,null,null,null,null,null,null,null,null,null,null,null,null,null,null,"抗菌薬2",null,null,null,null,null,null,null,null,null,{"$f":"IF(菌_2_名称<>\"\",菌_2_名称,\"\")","v":""},null,null,null,null,null,null,null,null,null,null,null,null,null,null,null,null,null,null,null,null,null,null,null,null,null,null,null,null,"抗菌薬2",null,null,null,null,null,null,null,null,null,{"$f":"IF(菌_3_名称<>\"\",菌_3_名称,\"\")","v":""}]
[null,null,null,null,null,"抗菌薬",null,null,null,null,null,null,null,null,null,null,null,null,null,null,null,null,null,null,null,null,null,null,null,null,null,null,null,null,null,null,null,null,null,null,null,null,null,null,"抗菌薬",null,null,null,null,null,null,null,null,null,null,null,null,null,null,null,null,null,null,null,null,null,null,null,null,null,null,null,null,null,null,null,null,null,null,null,null,null,null,"抗菌薬"]
[null,null,null,null,null,"検査方法",null,null,null,null,null,null,null,null,null,null,null,null,null,null,null,null,null,null,null,null,null,null,null,null,null,null,null,null,null,null,null,null,null,null,null,null,null,null,"検査方法",null,null,null,null,null,null,null,null,null,null,null,null,null,null,null,null,null,null,null,null,null,null,null,null,null,null,null,null,null,null,null,null,null,null,null,null,null,null,"検査方法"]
[null,null,null,null,null,"仕切記号",null,null,null,null,null,null,null,null,null,null,null,null,null,null,null,null,null,null,null,null,null,null,null,null,null,null,null,null,null,null,null,null,null,null,null,null,null,null,"仕切記号",null,null,null,null,null,null,null,null,null,null,null,null,null,null,null,null,null,null,null,null,null,null,null,null,null,null,null,null,null,null,null,null,null,null,null,null,null,null,"仕切記号"]
[null,null,null,null,null,"判定値",null,null,null,null,null,null,null,null,null,null,null,null,null,null,null,null,null,null,null,null,null,null,null,null,null,null,null,null,null,null,null,null,null,null,null,null,null,null,"判定値",null,null,null,null,null,null,null,null,null,null,null,null,null,null,null,null,null,null,null,null,null,null,null,null,null,null,null,null,null,null,null,null,null,null,null,null,null,null,"判定値"]
[null,null,null,null,null,"SIR判定",null,null,null,null,null,null,null,null,null,null,null,null,null,null,null,null,null,null,null,null,null,null,null,null,null,null,null,null,null,null,null,null,null,null,null,null,null,null,"SIR判定",null,null,null,null,null,null,null,null,null,null,null,null,null,null,null,null,null,null,null,null,null,null,null,null,null,null,null,null,null,null,null,null,null,null,null,null,null,null,"SIR判定"]
[null,null,null,null,"抗菌薬3",null,null,null,null,null,null,null,null,null,{"$f":"IF(菌_1_名称<>\"\",菌_1_名称,\"\")","v":""},null,null,null,null,null,null,null,null,null,null,null,null,null,null,null,null,null,null,null,null,null,null,null,null,null,null,null,null,"抗菌薬3",null,null,null,null,null,null,null,null,null,{"$f":"IF(菌_2_名称<>\"\",菌_2_名称,\"\")","v":""},null,null,null,null,null,null,null,null,null,null,null,null,null,null,null,null,null,null,null,null,null,null,null,null,null,null,null,null,"抗菌薬3",null,null,null,null,null,null,null,null,null,{"$f":"IF(菌_3_名称<>\"\",菌_3_名称,\"\")","v":""}]
[null,null,null,null,null,"抗菌薬",null,null,null,null,null,null,null,null,null,null,null,null,null,null,null,null,null,null,null,null,null,null,null,null,null,null,null,null,null,null,null,null,null,null,null,null,null,null,"抗菌薬",null,null,null,null,null,null,null,null,null,null,null,null,null,null,null,null,null,null,null,null,null,null,null,null,null,null,null,null,null,null,null,null,null,null,null,null,null,null,"抗菌薬"]
[null,null,null,null,null,"検査方法",null,null,null,null,null,null,null,null,null,null,null,null,null,null,null,null,null,null,null,null,null,null,null,null,null,null,null,null,null,null,null,null,null,null,null,null,null,null,"検査方法",null,null,null,null,null,null,null,null,null,null,null,null,null,null,null,null,null,null,null,null,null,null,null,null,null,null,null,null,null,null,null,null,null,null,null,null,null,null,"検査方法"]
[null,null,null,null,null,"仕切記号",null,null,null,null,null,null,null,null,null,null,null,null,null,null,null,null,null,null,null,null,null,null,null,null,null,null,null,null,null,null,null,null,null,null,null,null,null,null,"仕切記号",null,null,null,null,null,null,null,null,null,null,null,null,null,null,null,null,null,null,null,null,null,null,null,null,null,null,null,null,null,null,null,null,null,null,null,null,null,null,"仕切記号"]
[null,null,null,null,null,"判定値",null,null,null,null,null,null,null,null,null,null,null,null,null,null,null,null,null,null,null,null,null,null,null,null,null,null,null,null,null,null,null,null,null,null,null,null,null,null,"判定値",null,null,null,null,null,null,null,null,null,null,null,null,null,null,null,null,null,null,null,null,null,null,null,null,null,null,null,null,null,null,null,null,null,null,null,null,null,null,"判定値"]
[null,null,null,null,null,"SIR判定",null,null,null,null,null,null,null,null,null,null,null,null,null,null,null,null,null,null,null,null,null,null,null,null,null,null,null,null,null,null,null,null,null,null,null,null,null,null,"SIR判定",null,null,null,null,null,null,null,null,null,null,null,null,null,null,null,null,null,null,null,null,null,null,null,null,null,null,null,null,null,null,null,null,null,null,null,null,null,null,"SIR判定"]
[null,null,null,null,"抗菌薬4",null,null,null,null,null,null,null,null,null,{"$f":"IF(菌_1_名称<>\"\",菌_1_名称,\"\")","v":""},null,null,null,null,null,null,null,null,null,null,null,null,null,null,null,null,null,null,null,null,null,null,null,null,null,null,null,null,"抗菌薬4",null,null,null,null,null,null,null,null,null,{"$f":"IF(菌_2_名称<>\"\",菌_2_名称,\"\")","v":""},null,null,null,null,null,null,null,null,null,null,null,null,null,null,null,null,null,null,null,null,null,null,null,null,null,null,null,null,"抗菌薬4",null,null,null,null,null,null,null,null,null,{"$f":"IF(菌_3_名称<>\"\",菌_3_名称,\"\")","v":""}]
[null,null,null,null,null,"抗菌薬",null,null,null,null,null,null,null,null,null,null,null,null,null,null,null,null,null,null,null,null,null,null,null,null,null,null,null,null,null,null,null,null,null,null,null,null,null,null,"抗菌薬",null,null,null,null,null,null,null,null,null,null,null,null,null,null,null,null,null,null,null,null,null,null,null,null,null,null,null,null,null,null,null,null,null,null,null,null,null,null,"抗菌薬"]
[null,null,null,null,null,"検査方法",null,null,null,null,null,null,null,null,null,null,null,null,null,null,null,null,null,null,null,null,null,null,null,null,null,null,null,null,null,null,null,null,null,null,null,null,null,null,"検査方法",null,null,null,null,null,null,null,null,null,null,null,null,null,null,null,null,null,null,null,null,null,null,null,null,null,null,null,null,null,null,null,null,null,null,null,null,null,null,"検査方法"]
[null,null,null,null,null,"仕切記号",null,null,null,null,null,null,null,null,null,null,null,null,null,null,null,null,null,null,null,null,null,null,null,null,null,null,null,null,null,null,null,null,null,null,null,null,null,null,"仕切記号",null,null,null,null,null,null,null,null,null,null,null,null,null,null,null,null,null,null,null,null,null,null,null,null,null,null,null,null,null,null,null,null,null,null,null,null,null,null,"仕切記号"]
[null,null,null,null,null,"判定値",null,null,null,null,null,null,null,null,null,null,null,null,null,null,null,null,null,null,null,null,null,null,null,null,null,null,null,null,null,null,null,null,null,null,null,null,null,null,"判定値",null,null,null,null,null,null,null,null,null,null,null,null,null,null,null,null,null,null,null,null,null,null,null,null,null,null,null,null,null,null,null,null,null,null,null,null,null,null,"判定値"]
[null,null,null,null,null,"SIR判定",null,null,null,null,null,null,null,null,null,null,null,null,null,null,null,null,null,null,null,null,null,null,null,null,null,null,null,null,null,null,null,null,null,null,null,null,null,null,"SIR判定",null,null,null,null,null,null,null,null,null,null,null,null,null,null,null,null,null,null,null,null,null,null,null,null,null,null,null,null,null,null,null,null,null,null,null,null,null,null,"SIR判定"]
[null,null,null,null,"抗菌薬5",null,null,null,null,null,null,null,null,null,{"$f":"IF(菌_1_名称<>\"\",菌_1_名称,\"\")","v":""},null,null,null,null,null,null,null,null,null,null,null,null,null,null,null,null,null,null,null,null,null,null,null,null,null,null,null,null,"抗菌薬5",null,null,null,null,null,null,null,null,null,{"$f":"IF(菌_2_名称<>\"\",菌_2_名称,\"\")","v":""},null,null,null,null,null,null,null,null,null,null,null,null,null,null,null,null,null,null,null,null,null,null,null,null,null,null,null,null,"抗菌薬5",null,null,null,null,null,null,null,null,null,{"$f":"IF(菌_3_名称<>\"\",菌_3_名称,\"\")","v":""}]
[null,null,null,null,null,"抗菌薬",null,null,null,null,null,null,null,null,null,null,null,null,null,null,null,null,null,null,null,null,null,null,null,null,null,null,null,null,null,null,null,null,null,null,null,null,null,null,"抗菌薬",null,null,null,null,null,null,null,null,null,null,null,null,null,null,null,null,null,null,null,null,null,null,null,null,null,null,null,null,null,null,null,null,null,null,null,null,null,null,"抗菌薬"]
[null,null,null,null,null,"検査方法",null,null,null,null,null,null,null,null,null,null,null,null,null,null,null,null,null,null,null,null,null,null,null,null,null,null,null,null,null,null,null,null,null,null,null,null,null,null,"検査方法",null,null,null,null,null,null,null,null,null,null,null,null,null,null,null,null,null,null,null,null,null,null,null,null,null,null,null,null,null,null,null,null,null,null,null,null,null,null,"検査方法"]
[null,null,null,null,null,"仕切記号",null,null,null,null,null,null,null,null,null,null,null,null,null,null,null,null,null,null,null,null,null,null,null,null,null,null,null,null,null,null,null,null,null,null,null,null,null,null,"仕切記号",null,null,null,null,null,null,null,null,null,null,null,null,null,null,null,null,null,null,null,null,null,null,null,null,null,null,null,null,null,null,null,null,null,null,null,null,null,null,"仕切記号"]
[null,null,null,null,null,"判定値",null,null,null,null,null,null,null,null,null,null,null,null,null,null,null,null,null,null,null,null,null,null,null,null,null,null,null,null,null,null,null,null,null,null,null,null,null,null,"判定値",null,null,null,null,null,null,null,null,null,null,null,null,null,null,null,null,null,null,null,null,null,null,null,null,null,null,null,null,null,null,null,null,null,null,null,null,null,null,"判定値"]
[null,null,null,null,null,"SIR判定",null,null,null,null,null,null,null,null,null,null,null,null,null,null,null,null,null,null,null,null,null,null,null,null,null,null,null,null,null,null,null,null,null,null,null,null,null,null,"SIR判定",null,null,null,null,null,null,null,null,null,null,null,null,null,null,null,null,null,null,null,null,null,null,null,null,null,null,null,null,null,null,null,null,null,null,null,null,null,null,"SIR判定"]
[null,null,null,null,"抗菌薬6",null,null,null,null,null,null,null,null,null,{"$f":"IF(菌_1_名称<>\"\",菌_1_名称,\"\")","v":""},null,null,null,null,null,null,null,null,null,null,null,null,null,null,null,null,null,null,null,null,null,null,null,null,null,null,null,null,"抗菌薬6",null,null,null,null,null,null,null,null,null,{"$f":"IF(菌_2_名称<>\"\",菌_2_名称,\"\")","v":""},null,null,null,null,null,null,null,null,null,null,null,null,null,null,null,null,null,null,null,null,null,null,null,null,null,null,null,null,"抗菌薬6",null,null,null,null,null,null,null,null,null,{"$f":"IF(菌_3_名称<>\"\",菌_3_名称,\"\")","v":""}]
[null,null,null,null,null,"抗菌薬",null,null,null,null,null,null,null,null,null,null,null,null,null,null,null,null,null,null,null,null,null,null,null,null,null,null,null,null,null,null,null,null,null,null,null,null,null,null,"抗菌薬",null,null,null,null,null,null,null,null,null,null,null,null,null,null,null,null,null,null,null,null,null,null,null,null,null,null,null,null,null,null,null,null,null,null,null,null,null,null,"抗菌薬"]
[null,null,null,null,null,"検査方法",null,null,null,null,null,null,null,null,null,null,null,null,null,null,null,null,null,null,null,null,null,null,null,null,null,null,null,null,null,null,null,null,null,null,null,null,null,null,"検査方法",null,null,null,null,null,null,null,null,null,null,null,null,null,null,null,null,null,null,null,null,null,null,null,null,null,null,null,null,null,null,null,null,null,null,null,null,null,null,"検査方法"]
[null,null,null,null,null,"仕切記号",null,null,null,null,null,null,null,null,null,null,null,null,null,null,null,null,null,null,null,null,null,null,null,null,null,null,null,null,null,null,null,null,null,null,null,null,null,null,"仕切記号",null,null,null,null,null,null,null,null,null,null,null,null,null,null,null,null,null,null,null,null,null,null,null,null,null,null,null,null,null,null,null,null,null,null,null,null,null,null,"仕切記号"]
[null,null,null,null,null,"判定値",null,null,null,null,null,null,null,null,null,null,null,null,null,null,null,null,null,null,null,null,null,null,null,null,null,null,null,null,null,null,null,null,null,null,null,null,null,null,"判定値",null,null,null,null,null,null,null,null,null,null,null,null,null,null,null,null,null,null,null,null,null,null,null,null,null,null,null,null,null,null,null,null,null,null,null,null,null,null,"判定値"]
[null,null,null,null,null,"SIR判定",null,null,null,null,null,null,null,null,null,null,null,null,null,null,null,null,null,null,null,null,null,null,null,null,null,null,null,null,null,null,null,null,null,null,null,null,null,null,"SIR判定",null,null,null,null,null,null,null,null,null,null,null,null,null,null,null,null,null,null,null,null,null,null,null,null,null,null,null,null,null,null,null,null,null,null,null,null,null,null,"SIR判定"]
[null,null,null,null,"抗菌薬7",null,null,null,null,null,null,null,null,null,{"$f":"IF(菌_1_名称<>\"\",菌_1_名称,\"\")","v":""},null,null,null,null,null,null,null,null,null,null,null,null,null,null,null,null,null,null,null,null,null,null,null,null,null,null,null,null,"抗菌薬7",null,null,null,null,null,null,null,null,null,{"$f":"IF(菌_2_名称<>\"\",菌_2_名称,\"\")","v":""},null,null,null,null,null,null,null,null,null,null,null,null,null,null,null,null,null,null,null,null,null,null,null,null,null,null,null,null,"抗菌薬7",null,null,null,null,null,null,null,null,null,{"$f":"IF(菌_3_名称<>\"\",菌_3_名称,\"\")","v":""}]
[null,null,null,null,null,"抗菌薬",null,null,null,null,null,null,null,null,null,null,null,null,null,null,null,null,null,null,null,null,null,null,null,null,null,null,null,null,null,null,null,null,null,null,null,null,null,null,"抗菌薬",null,null,null,null,null,null,null,null,null,null,null,null,null,null,null,null,null,null,null,null,null,null,null,null,null,null,null,null,null,null,null,null,null,null,null,null,null,null,"抗菌薬"]
[null,null,null,null,null,"検査方法",null,null,null,null,null,null,null,null,null,null,null,null,null,null,null,null,null,null,null,null,null,null,null,null,null,null,null,null,null,null,null,null,null,null,null,null,null,null,"検査方法",null,null,null,null,null,null,null,null,null,null,null,null,null,null,null,null,null,null,null,null,null,null,null,null,null,null,null,null,null,null,null,null,null,null,null,null,null,null,"検査方法"]
[null,null,null,null,null,"仕切記号",null,null,null,null,null,null,null,null,null,null,null,null,null,null,null,null,null,null,null,null,null,null,null,null,null,null,null,null,null,null,null,null,null,null,null,null,null,null,"仕切記号",null,null,null,null,null,null,null,null,null,null,null,null,null,null,null,null,null,null,null,null,null,null,null,null,null,null,null,null,null,null,null,null,null,null,null,null,null,null,"仕切記号"]
[null,null,null,null,null,"判定値",null,null,null,null,null,null,null,null,null,null,null,null,null,null,null,null,null,null,null,null,null,null,null,null,null,null,null,null,null,null,null,null,null,null,null,null,null,null,"判定値",null,null,null,null,null,null,null,null,null,null,null,null,null,null,null,null,null,null,null,null,null,null,null,null,null,null,null,null,null,null,null,null,null,null,null,null,null,null,"判定値"]
[null,null,null,null,null,"SIR判定",null,null,null,null,null,null,null,null,null,null,null,null,null,null,null,null,null,null,null,null,null,null,null,null,null,null,null,null,null,null,null,null,null,null,null,null,null,null,"SIR判定",null,null,null,null,null,null,null,null,null,null,null,null,null,null,null,null,null,null,null,null,null,null,null,null,null,null,null,null,null,null,null,null,null,null,null,null,null,null,"SIR判定"]
[null,null,null,null,"抗菌薬8",null,null,null,null,null,null,null,null,null,{"$f":"IF(菌_1_名称<>\"\",菌_1_名称,\"\")","v":""},null,null,null,null,null,null,null,null,null,null,null,null,null,null,null,null,null,null,null,null,null,null,null,null,null,null,null,null,"抗菌薬8",null,null,null,null,null,null,null,null,null,{"$f":"IF(菌_2_名称<>\"\",菌_2_名称,\"\")","v":""},null,null,null,null,null,null,null,null,null,null,null,null,null,null,null,null,null,null,null,null,null,null,null,null,null,null,null,null,"抗菌薬8",null,null,null,null,null,null,null,null,null,{"$f":"IF(菌_3_名称<>\"\",菌_3_名称,\"\")","v":""}]
[null,null,null,null,null,"抗菌薬",null,null,null,null,null,null,null,null,null,null,null,null,null,null,null,null,null,null,null,null,null,null,null,null,null,null,null,null,null,null,null,null,null,null,null,null,null,null,"抗菌薬",null,null,null,null,null,null,null,null,null,null,null,null,null,null,null,null,null,null,null,null,null,null,null,null,null,null,null,null,null,null,null,null,null,null,null,null,null,null,"抗菌薬"]
[null,null,null,null,null,"検査方法",null,null,null,null,null,null,null,null,null,null,null,null,null,null,null,null,null,null,null,null,null,null,null,null,null,null,null,null,null,null,null,null,null,null,null,null,null,null,"検査方法",null,null,null,null,null,null,null,null,null,null,null,null,null,null,null,null,null,null,null,null,null,null,null,null,null,null,null,null,null,null,null,null,null,null,null,null,null,null,"検査方法"]
[null,null,null,null,null,"仕切記号",null,null,null,null,null,null,null,null,null,null,null,null,null,null,null,null,null,null,null,null,null,null,null,null,null,null,null,null,null,null,null,null,null,null,null,null,null,null,"仕切記号",null,null,null,null,null,null,null,null,null,null,null,null,null,null,null,null,null,null,null,null,null,null,null,null,null,null,null,null,null,null,null,null,null,null,null,null,null,null,"仕切記号"]
[null,null,null,null,null,"判定値",null,null,null,null,null,null,null,null,null,null,null,null,null,null,null,null,null,null,null,null,null,null,null,null,null,null,null,null,null,null,null,null,null,null,null,null,null,null,"判定値",null,null,null,null,null,null,null,null,null,null,null,null,null,null,null,null,null,null,null,null,null,null,null,null,null,null,null,null,null,null,null,null,null,null,null,null,null,null,"判定値"]
[null,null,null,null,null,"SIR判定",null,null,null,null,null,null,null,null,null,null,null,null,null,null,null,null,null,null,null,null,null,null,null,null,null,null,null,null,null,null,null,null,null,null,null,null,null,null,"SIR判定",null,null,null,null,null,null,null,null,null,null,null,null,null,null,null,null,null,null,null,null,null,null,null,null,null,null,null,null,null,null,null,null,null,null,null,null,null,null,"SIR判定"]
[null,null,null,null,"抗菌薬9",null,null,null,null,null,null,null,null,null,{"$f":"IF(菌_1_名称<>\"\",菌_1_名称,\"\")","v":""},null,null,null,null,null,null,null,null,null,null,null,null,null,null,null,null,null,null,null,null,null,null,null,null,null,null,null,null,"抗菌薬9",null,null,null,null,null,null,null,null,null,{"$f":"IF(菌_2_名称<>\"\",菌_2_名称,\"\")","v":""},null,null,null,null,null,null,null,null,null,null,null,null,null,null,null,null,null,null,null,null,null,null,null,null,null,null,null,null,"抗菌薬9",null,null,null,null,null,null,null,null,null,{"$f":"IF(菌_3_名称<>\"\",菌_3_名称,\"\")","v":""}]
[null,null,null,null,null,"抗菌薬",null,null,null,null,null,null,null,null,null,null,null,null,null,null,null,null,null,null,null,null,null,null,null,null,null,null,null,null,null,null,null,null,null,null,null,null,null,null,"抗菌薬",null,null,null,null,null,null,null,null,null,null,null,null,null,null,null,null,null,null,null,null,null,null,null,null,null,null,null,null,null,null,null,null,null,null,null,null,null,null,"抗菌薬"]
[null,null,null,null,null,"検査方法",null,null,null,null,null,null,null,null,null,null,null,null,null,null,null,null,null,null,null,null,null,null,null,null,null,null,null,null,null,null,null,null,null,null,null,null,null,null,"検査方法",null,null,null,null,null,null,null,null,null,null,null,null,null,null,null,null,null,null,null,null,null,null,null,null,null,null,null,null,null,null,null,null,null,null,null,null,null,null,"検査方法"]
[null,null,null,null,null,"仕切記号",null,null,null,null,null,null,null,null,null,null,null,null,null,null,null,null,null,null,null,null,null,null,null,null,null,null,null,null,null,null,null,null,null,null,null,null,null,null,"仕切記号",null,null,null,null,null,null,null,null,null,null,null,null,null,null,null,null,null,null,null,null,null,null,null,null,null,null,null,null,null,null,null,null,null,null,null,null,null,null,"仕切記号"]
[null,null,null,null,null,"判定値",null,null,null,null,null,null,null,null,null,null,null,null,null,null,null,null,null,null,null,null,null,null,null,null,null,null,null,null,null,null,null,null,null,null,null,null,null,null,"判定値",null,null,null,null,null,null,null,null,null,null,null,null,null,null,null,null,null,null,null,null,null,null,null,null,null,null,null,null,null,null,null,null,null,null,null,null,null,null,"判定値"]
[null,null,null,null,null,"SIR判定",null,null,null,null,null,null,null,null,null,null,null,null,null,null,null,null,null,null,null,null,null,null,null,null,null,null,null,null,null,null,null,null,null,null,null,null,null,null,"SIR判定",null,null,null,null,null,null,null,null,null,null,null,null,null,null,null,null,null,null,null,null,null,null,null,null,null,null,null,null,null,null,null,null,null,null,null,null,null,null,"SIR判定"]
[null,null,null,null,"抗菌薬10",null,null,null,null,null,null,null,null,null,{"$f":"IF(菌_1_名称<>\"\",菌_1_名称,\"\")","v":""},null,null,null,null,null,null,null,null,null,null,null,null,null,null,null,null,null,null,null,null,null,null,null,null,null,null,null,null,"抗菌薬10",null,null,null,null,null,null,null,null,null,{"$f":"IF(菌_2_名称<>\"\",菌_2_名称,\"\")","v":""},null,null,null,null,null,null,null,null,null,null,null,null,null,null,null,null,null,null,null,null,null,null,null,null,null,null,null,null,"抗菌薬10",null,null,null,null,null,null,null,null,null,{"$f":"IF(菌_3_名称<>\"\",菌_3_名称,\"\")","v":""}]
[null,null,null,null,null,"抗菌薬",null,null,null,null,null,null,null,null,null,null,null,null,null,null,null,null,null,null,null,null,null,null,null,null,null,null,null,null,null,null,null,null,null,null,null,null,null,null,"抗菌薬",null,null,null,null,null,null,null,null,null,null,null,null,null,null,null,null,null,null,null,null,null,null,null,null,null,null,null,null,null,null,null,null,null,null,null,null,null,null,"抗菌薬"]
[null,null,null,null,null,"検査方法",null,null,null,null,null,null,null,null,null,null,null,null,null,null,null,null,null,null,null,null,null,null,null,null,null,null,null,null,null,null,null,null,null,null,null,null,null,null,"検査方法",null,null,null,null,null,null,null,null,null,null,null,null,null,null,null,null,null,null,null,null,null,null,null,null,null,null,null,null,null,null,null,null,null,null,null,null,null,null,"検査方法"]
[null,null,null,null,null,"仕切記号",null,null,null,null,null,null,null,null,null,null,null,null,null,null,null,null,null,null,null,null,null,null,null,null,null,null,null,null,null,null,null,null,null,null,null,null,null,null,"仕切記号",null,null,null,null,null,null,null,null,null,null,null,null,null,null,null,null,null,null,null,null,null,null,null,null,null,null,null,null,null,null,null,null,null,null,null,null,null,null,"仕切記号"]
[null,null,null,null,null,"判定値",null,null,null,null,null,null,null,null,null,null,null,null,null,null,null,null,null,null,null,null,null,null,null,null,null,null,null,null,null,null,null,null,null,null,null,null,null,null,"判定値",null,null,null,null,null,null,null,null,null,null,null,null,null,null,null,null,null,null,null,null,null,null,null,null,null,null,null,null,null,null,null,null,null,null,null,null,null,null,"判定値"]
[null,null,null,null,null,"SIR判定",null,null,null,null,null,null,null,null,null,null,null,null,null,null,null,null,null,null,null,null,null,null,null,null,null,null,null,null,null,null,null,null,null,null,null,null,null,null,"SIR判定",null,null,null,null,null,null,null,null,null,null,null,null,null,null,null,null,null,null,null,null,null,null,null,null,null,null,null,null,null,null,null,null,null,null,null,null,null,null,"SIR判定"]
[null,null,null,null,"抗菌薬11",null,null,null,null,null,null,null,null,null,{"$f":"IF(菌_1_名称<>\"\",菌_1_名称,\"\")","v":""},null,null,null,null,null,null,null,null,null,null,null,null,null,null,null,null,null,null,null,null,null,null,null,null,null,null,null,null,"抗菌薬11",null,null,null,null,null,null,null,null,null,{"$f":"IF(菌_2_名称<>\"\",菌_2_名称,\"\")","v":""},null,null,null,null,null,null,null,null,null,null,null,null,null,null,null,null,null,null,null,null,null,null,null,null,null,null,null,null,"抗菌薬11",null,null,null,null,null,null,null,null,null,{"$f":"IF(菌_3_名称<>\"\",菌_3_名称,\"\")","v":""}]
[null,null,null,null,null,"抗菌薬",null,null,null,null,null,null,null,null,null,null,null,null,null,null,null,null,null,null,null,null,null,null,null,null,null,null,null,null,null,null,null,null,null,null,null,null,null,null,"抗菌薬",null,null,null,null,null,null,null,null,null,null,null,null,null,null,null,null,null,null,null,null,null,null,null,null,null,null,null,null,null,null,null,null,null,null,null,null,null,null,"抗菌薬"]
[null,null,null,null,null,"検査方法",null,null,null,null,null,null,null,null,null,null,null,null,null,null,null,null,null,null,null,null,null,null,null,null,null,null,null,null,null,null,null,null,null,null,null,null,null,null,"検査方法",null,null,null,null,null,null,null,null,null,null,null,null,null,null,null,null,null,null,null,null,null,null,null,null,null,null,null,null,null,null,null,null,null,null,null,null,null,null,"検査方法"]
[null,null,null,null,null,"仕切記号",null,null,null,null,null,null,null,null,null,null,null,null,null,null,null,null,null,null,null,null,null,null,null,null,null,null,null,null,null,null,null,null,null,null,null,null,null,null,"仕切記号",null,null,null,null,null,null,null,null,null,null,null,null,null,null,null,null,null,null,null,null,null,null,null,null,null,null,null,null,null,null,null,null,null,null,null,null,null,null,"仕切記号"]
[null,null,null,null,null,"判定値",null,null,null,null,null,null,null,null,null,null,null,null,null,null,null,null,null,null,null,null,null,null,null,null,null,null,null,null,null,null,null,null,null,null,null,null,null,null,"判定値",null,null,null,null,null,null,null,null,null,null,null,null,null,null,null,null,null,null,null,null,null,null,null,null,null,null,null,null,null,null,null,null,null,null,null,null,null,null,"判定値"]
[null,null,null,null,null,"SIR判定",null,null,null,null,null,null,null,null,null,null,null,null,null,null,null,null,null,null,null,null,null,null,null,null,null,null,null,null,null,null,null,null,null,null,null,null,null,null,"SIR判定",null,null,null,null,null,null,null,null,null,null,null,null,null,null,null,null,null,null,null,null,null,null,null,null,null,null,null,null,null,null,null,null,null,null,null,null,null,null,"SIR判定"]
[null,null,null,null,"抗菌薬12",null,null,null,null,null,null,null,null,null,{"$f":"IF(菌_1_名称<>\"\",菌_1_名称,\"\")","v":""},null,null,null,null,null,null,null,null,null,null,null,null,null,null,null,null,null,null,null,null,null,null,null,null,null,null,null,null,"抗菌薬12",null,null,null,null,null,null,null,null,null,{"$f":"IF(菌_2_名称<>\"\",菌_2_名称,\"\")","v":""},null,null,null,null,null,null,null,null,null,null,null,null,null,null,null,null,null,null,null,null,null,null,null,null,null,null,null,null,"抗菌薬12",null,null,null,null,null,null,null,null,null,{"$f":"IF(菌_3_名称<>\"\",菌_3_名称,\"\")","v":""}]
[null,null,null,null,null,"抗菌薬",null,null,null,null,null,null,null,null,null,null,null,null,null,null,null,null,null,null,null,null,null,null,null,null,null,null,null,null,null,null,null,null,null,null,null,null,null,null,"抗菌薬",null,null,null,null,null,null,null,null,null,null,null,null,null,null,null,null,null,null,null,null,null,null,null,null,null,null,null,null,null,null,null,null,null,null,null,null,null,null,"抗菌薬"]
[null,null,null,null,null,"検査方法",null,null,null,null,null,null,null,null,null,null,null,null,null,null,null,null,null,null,null,null,null,null,null,null,null,null,null,null,null,null,null,null,null,null,null,null,null,null,"検査方法",null,null,null,null,null,null,null,null,null,null,null,null,null,null,null,null,null,null,null,null,null,null,null,null,null,null,null,null,null,null,null,null,null,null,null,null,null,null,"検査方法"]
[null,null,null,null,null,"仕切記号",null,null,null,null,null,null,null,null,null,null,null,null,null,null,null,null,null,null,null,null,null,null,null,null,null,null,null,null,null,null,null,null,null,null,null,null,null,null,"仕切記号",null,null,null,null,null,null,null,null,null,null,null,null,null,null,null,null,null,null,null,null,null,null,null,null,null,null,null,null,null,null,null,null,null,null,null,null,null,null,"仕切記号"]
[null,null,null,null,null,"判定値",null,null,null,null,null,null,null,null,null,null,null,null,null,null,null,null,null,null,null,null,null,null,null,null,null,null,null,null,null,null,null,null,null,null,null,null,null,null,"判定値",null,null,null,null,null,null,null,null,null,null,null,null,null,null,null,null,null,null,null,null,null,null,null,null,null,null,null,null,null,null,null,null,null,null,null,null,null,null,"判定値"]
[null,null,null,null,null,"SIR判定",null,null,null,null,null,null,null,null,null,null,null,null,null,null,null,null,null,null,null,null,null,null,null,null,null,null,null,null,null,null,null,null,null,null,null,null,null,null,"SIR判定",null,null,null,null,null,null,null,null,null,null,null,null,null,null,null,null,null,null,null,null,null,null,null,null,null,null,null,null,null,null,null,null,null,null,null,null,null,null,"SIR判定"]
[null,null,null,null,"抗菌薬13",null,null,null,null,null,null,null,null,null,{"$f":"IF(菌_1_名称<>\"\",菌_1_名称,\"\")","v":""},null,null,null,null,null,null,null,null,null,null,null,null,null,null,null,null,null,null,null,null,null,null,null,null,null,null,null,null,"抗菌薬13",null,null,null,null,null,null,null,null,null,{"$f":"IF(菌_2_名称<>\"\",菌_2_名称,\"\")","v":""},null,null,null,null,null,null,null,null,null,null,null,null,null,null,null,null,null,null,null,null,null,null,null,null,null,null,null,null,"抗菌薬13",null,null,null,null,null,null,null,null,null,{"$f":"IF(菌_3_名称<>\"\",菌_3_名称,\"\")","v":""}]
[null,null,null,null,null,"抗菌薬",null,null,null,null,null,null,null,null,null,null,null,null,null,null,null,null,null,null,null,null,null,null,null,null,null,null,null,null,null,null,null,null,null,null,null,null,null,null,"抗菌薬",null,null,null,null,null,null,null,null,null,null,null,null,null,null,null,null,null,null,null,null,null,null,null,null,null,null,null,null,null,null,null,null,null,null,null,null,null,null,"抗菌薬"]
[null,null,null,null,null,"検査方法",null,null,null,null,null,null,null,null,null,null,null,null,null,null,null,null,null,null,null,null,null,null,null,null,null,null,null,null,null,null,null,null,null,null,null,null,null,null,"検査方法",null,null,null,null,null,null,null,null,null,null,null,null,null,null,null,null,null,null,null,null,null,null,null,null,null,null,null,null,null,null,null,null,null,null,null,null,null,null,"検査方法"]
[null,null,null,null,null,"仕切記号",null,null,null,null,null,null,null,null,null,null,null,null,null,null,null,null,null,null,null,null,null,null,null,null,null,null,null,null,null,null,null,null,null,null,null,null,null,null,"仕切記号",null,null,null,null,null,null,null,null,null,null,null,null,null,null,null,null,null,null,null,null,null,null,null,null,null,null,null,null,null,null,null,null,null,null,null,null,null,null,"仕切記号"]
[null,null,null,null,null,"判定値",null,null,null,null,null,null,null,null,null,null,null,null,null,null,null,null,null,null,null,null,null,null,null,null,null,null,null,null,null,null,null,null,null,null,null,null,null,null,"判定値",null,null,null,null,null,null,null,null,null,null,null,null,null,null,null,null,null,null,null,null,null,null,null,null,null,null,null,null,null,null,null,null,null,null,null,null,null,null,"判定値"]
[null,null,null,null,null,"SIR判定",null,null,null,null,null,null,null,null,null,null,null,null,null,null,null,null,null,null,null,null,null,null,null,null,null,null,null,null,null,null,null,null,null,null,null,null,null,null,"SIR判定",null,null,null,null,null,null,null,null,null,null,null,null,null,null,null,null,null,null,null,null,null,null,null,null,null,null,null,null,null,null,null,null,null,null,null,null,null,null,"SIR判定"]
[null,null,null,null,"抗菌薬14",null,null,null,null,null,null,null,null,null,{"$f":"IF(菌_1_名称<>\"\",菌_1_名称,\"\")","v":""},null,null,null,null,null,null,null,null,null,null,null,null,null,null,null,null,null,null,null,null,null,null,null,null,null,null,null,null,"抗菌薬14",null,null,null,null,null,null,null,null,null,{"$f":"IF(菌_2_名称<>\"\",菌_2_名称,\"\")","v":""},null,null,null,null,null,null,null,null,null,null,null,null,null,null,null,null,null,null,null,null,null,null,null,null,null,null,null,null,"抗菌薬14",null,null,null,null,null,null,null,null,null,{"$f":"IF(菌_3_名称<>\"\",菌_3_名称,\"\")","v":""}]
[null,null,null,null,null,"抗菌薬",null,null,null,null,null,null,null,null,null,null,null,null,null,null,null,null,null,null,null,null,null,null,null,null,null,null,null,null,null,null,null,null,null,null,null,null,null,null,"抗菌薬",null,null,null,null,null,null,null,null,null,null,null,null,null,null,null,null,null,null,null,null,null,null,null,null,null,null,null,null,null,null,null,null,null,null,null,null,null,null,"抗菌薬"]
[null,null,null,null,null,"検査方法",null,null,null,null,null,null,null,null,null,null,null,null,null,null,null,null,null,null,null,null,null,null,null,null,null,null,null,null,null,null,null,null,null,null,null,null,null,null,"検査方法",null,null,null,null,null,null,null,null,null,null,null,null,null,null,null,null,null,null,null,null,null,null,null,null,null,null,null,null,null,null,null,null,null,null,null,null,null,null,"検査方法"]
[null,null,null,null,null,"仕切記号",null,null,null,null,null,null,null,null,null,null,null,null,null,null,null,null,null,null,null,null,null,null,null,null,null,null,null,null,null,null,null,null,null,null,null,null,null,null,"仕切記号",null,null,null,null,null,null,null,null,null,null,null,null,null,null,null,null,null,null,null,null,null,null,null,null,null,null,null,null,null,null,null,null,null,null,null,null,null,null,"仕切記号"]
[null,null,null,null,null,"判定値",null,null,null,null,null,null,null,null,null,null,null,null,null,null,null,null,null,null,null,null,null,null,null,null,null,null,null,null,null,null,null,null,null,null,null,null,null,null,"判定値",null,null,null,null,null,null,null,null,null,null,null,null,null,null,null,null,null,null,null,null,null,null,null,null,null,null,null,null,null,null,null,null,null,null,null,null,null,null,"判定値"]
[null,null,null,null,null,"SIR判定",null,null,null,null,null,null,null,null,null,null,null,null,null,null,null,null,null,null,null,null,null,null,null,null,null,null,null,null,null,null,null,null,null,null,null,null,null,null,"SIR判定",null,null,null,null,null,null,null,null,null,null,null,null,null,null,null,null,null,null,null,null,null,null,null,null,null,null,null,null,null,null,null,null,null,null,null,null,null,null,"SIR判定"]
[null,null,null,null,"抗菌薬15",null,null,null,null,null,null,null,null,null,{"$f":"IF(菌_1_名称<>\"\",菌_1_名称,\"\")","v":""},null,null,null,null,null,null,null,null,null,null,null,null,null,null,null,null,null,null,null,null,null,null,null,null,null,null,null,null,"抗菌薬15",null,null,null,null,null,null,null,null,null,{"$f":"IF(菌_2_名称<>\"\",菌_2_名称,\"\")","v":""},null,null,null,null,null,null,null,null,null,null,null,null,null,null,null,null,null,null,null,null,null,null,null,null,null,null,null,null,"抗菌薬15",null,null,null,null,null,null,null,null,null,{"$f":"IF(菌_3_名称<>\"\",菌_3_名称,\"\")","v":""}]
[null,null,null,null,null,"抗菌薬",null,null,null,null,null,null,null,null,null,null,null,null,null,null,null,null,null,null,null,null,null,null,null,null,null,null,null,null,null,null,null,null,null,null,null,null,null,null,"抗菌薬",null,null,null,null,null,null,null,null,null,null,null,null,null,null,null,null,null,null,null,null,null,null,null,null,null,null,null,null,null,null,null,null,null,null,null,null,null,null,"抗菌薬"]
[null,null,null,null,null,"検査方法",null,null,null,null,null,null,null,null,null,null,null,null,null,null,null,null,null,null,null,null,null,null,null,null,null,null,null,null,null,null,null,null,null,null,null,null,null,null,"検査方法",null,null,null,null,null,null,null,null,null,null,null,null,null,null,null,null,null,null,null,null,null,null,null,null,null,null,null,null,null,null,null,null,null,null,null,null,null,null,"検査方法"]
[null,null,null,null,null,"仕切記号",null,null,null,null,null,null,null,null,null,null,null,null,null,null,null,null,null,null,null,null,null,null,null,null,null,null,null,null,null,null,null,null,null,null,null,null,null,null,"仕切記号",null,null,null,null,null,null,null,null,null,null,null,null,null,null,null,null,null,null,null,null,null,null,null,null,null,null,null,null,null,null,null,null,null,null,null,null,null,null,"仕切記号"]
[null,null,null,null,null,"判定値",null,null,null,null,null,null,null,null,null,null,null,null,null,null,null,null,null,null,null,null,null,null,null,null,null,null,null,null,null,null,null,null,null,null,null,null,null,null,"判定値",null,null,null,null,null,null,null,null,null,null,null,null,null,null,null,null,null,null,null,null,null,null,null,null,null,null,null,null,null,null,null,null,null,null,null,null,null,null,"判定値"]
[null,null,null,null,null,"SIR判定",null,null,null,null,null,null,null,null,null,null,null,null,null,null,null,null,null,null,null,null,null,null,null,null,null,null,null,null,null,null,null,null,null,null,null,null,null,null,"SIR判定",null,null,null,null,null,null,null,null,null,null,null,null,null,null,null,null,null,null,null,null,null,null,null,null,null,null,null,null,null,null,null,null,null,null,null,null,null,null,"SIR判定"]

{"sheet":"登録情報一覧","index":2,"n_rows":3,"n_cols":761,"rows_kept":3,"cut":false,"hidden":false,"merged":[[0,0,1,0],[0,1,1,1],[0,2,1,2],[0,3,1,3],[0,4,1,4],[0,5,1,5],[0,731,0,735],[0,736,0,740],[0,741,0,745],[0,671,0,675],[0,676,0,680],[0,681,0,685],[0,686,0,690],[0,691,0,695],[0,696,0,700],[0,641,0,645],[0,646,0,650],[0,651,0,655],[0,656,0,660],[0,661,0,665],[0,666,0,670],[0,611,0,615],[0,616,0,620],[0,621,0,625],[0,746,0,750],[0,751,0,755],[0,756,0,760],[0,701,0,705],[0,706,0,710],[0,711,0,715],[0,716,0,720],[0,721,0,725],[0,726,0,730],[0,626,0,630],[0,631,0,635],[0,636,0,640],[0,580,0,584],[0,585,0,589],[0,590,0,594],[0,595,0,599],[0,600,0,604],[0,605,0,609],[0,550,0,554],[0,555,0,559],[0,560,0,564],[0,565,0,569],[0,570,0,574],[0,575,0,579],[0,520,0,524],[0,525,0,529],[0,530,0,534],[0,535,0,539],[0,540,0,544],[0,545,0,549],[0,490,0,494],[0,495,0,499],[0,500,0,504],[0,505,0,509],[0,510,0,514],[0,515,0,519],[0,460,0,464],[0,465,0,469],[0,470,0,474],[0,475,0,479],[0,480,0,484],[0,485,0,489],[0,429,0,433],[0,434,0,438],[0,439,0,443],[0,444,0,448],[0,449,0,453],[0,454,0,458],[0,399,0,403],[0,404,0,408],[0,409,0,413],[0,414,0,418],[0,419,0,423],[0,424,0,428],[0,369,0,373],[0,374,0,378],[0,379,0,383],[0,384,0,388],[0,389,0,393],[0,394,0,398],[0,339,0,343],[0,344,0,348],[0,349,0,353],[0,354,0,358],[0,359,0,363],[0,364,0,368],[0,309,0,313],[0,314,0,318],[0,319,0,323],[0,324,0,328],[0,329,0,333],[0,334,0,338],[0,278,0,282],[0,283,0,287],[0,288,0,292],[0,293,0,297],[0,298,0,302],[0,303,0,307],[0,248,0,252],[0,253,0,257],[0,258,0,262],[0,263,0,267],[0,268,0,272],[0,273,0,277],[0,218,0,222],[0,223,0,227],[0,228,0,232],[0,233,0,237],[0,238,0,242],[0,243,0,247],[0,188,0,192],[0,193,0,197],[0,198,0,202],[0,203,0,207],[0,208,0,212],[0,213,0,217],[0,158,0,162],[0,163,0,167],[0,168,0,172],[0,173,0,177],[0,178,0,182],[0,183,0,187],[0,127,0,131],[0,132,0,136],[0,137,0,141],[0,142,0,146],[0,147,0,151],[0,152,0,156],[0,97,0,101],[0,102,0,106],[0,107,0,111],[0,112,0,116],[0,117,0,121],[0,122,0,126],[0,82,0,86],[0,87,0,91],[0,92,0,96],[0,37,0,41],[0,42,0,46],[0,47,0,51],[0,52,0,56],[0,57,0,61],[0,62,0,66],[0,7,0,11],[0,12,0,16],[0,17,0,21],[0,22,0,26],[0,27,0,31],[0,32,0,36],[0,67,0,71],[0,72,0,76],[0,77,0,81]]}
["医療機関コード","患者ID","入院外来","検査材料","検体提出日","検体番号","菌1","菌1-抗菌薬1",null,null,null,null,"菌1-抗菌薬2",null,null,null,null,"菌1-抗菌薬3",null,null,null,null,"菌1-抗菌薬4",null,null,null,null,"菌1-抗菌薬5",null,null,null,null,"菌1-抗菌薬6",null,null,null,null,"菌1-抗菌薬7",null,null,null,null,"菌1-抗菌薬8",null,null,null,null,"菌1-抗菌薬9",null,null,null,null,"菌1-抗菌薬10",null,null,null,null,"菌1-抗菌薬11",null,null,null,null,"菌1-抗菌薬12",null,null,null,null,"菌1-抗菌薬13",null,null,null,null,"菌1-抗菌薬14",null,null,null,null,"菌1-抗菌薬15",null,null,null,null,"菌1-抗菌薬16",null,null,null,null,"菌1-抗菌薬17",null,null,null,null,"菌1-抗菌薬18",null,null,null,null,"菌1-抗菌薬19",null,null,null,null,"菌1-抗菌薬20",null,null,null,null,"菌1-抗菌薬21",null,null,null,null,"菌1-抗菌薬22",null,null,null,null,"菌1-抗菌薬23",null,null,null,null,"菌1-抗菌薬24",null,null,null,null,"菌1-抗菌薬25",null,null,null,null,"菌1-抗菌薬26",null,null,null,null,"菌1-抗菌薬27",null,null,null,null,"菌1-抗菌薬28",null,null,null,null,"菌1-抗菌薬29",null,null,null,null,"菌1-抗菌薬30",null,null,null,null,"菌2","菌2-抗菌薬1",null,null,null,null,"菌2-抗菌薬2",null,null,null,null,"菌2-抗菌薬3",null,null,null,null,"菌2-抗菌薬4",null,null,null,null,"菌2-抗菌薬5",null,null,null,null,"菌2-抗菌薬6",null,null,null,null,"菌2-抗菌薬7",null,null,null,null,"菌2-抗菌薬8",null,null,null,null,"菌2-抗菌薬9",null,null,null,null,"菌2-抗菌薬10",null,null,null,null,"菌2-抗菌薬11",null,null,null,null,"菌2-抗菌薬12",null,null,null,null,"菌2-抗菌薬13",null,null,null,null,"菌2-抗菌薬14",null,null,null,null,"菌2-抗菌薬15",null,null,null,null,"菌2-抗菌薬16",null,null,null,null,"菌2-抗菌薬17",null,null,null,null,"菌2-抗菌薬18",null,null,null,null,"菌2-抗菌薬19",null,null,null,null,"菌2-抗菌薬20",null,null,null,null,"菌2-抗菌薬21",null,null,null,null,"菌2-抗菌薬22",null,null,null,null,"菌2-抗菌薬23",null,null,null,null,"菌2-抗菌薬24",null,null,null,null,"菌2-抗菌薬25",null,null,null,null,"菌2-抗菌薬26",null,null,null,null,"菌2-抗菌薬27",null,null,null,null,"菌2-抗菌薬28",null,null,null,null,"菌2-抗菌薬29",null,null,null,null,"菌2-抗菌薬30",null,null,null,null,"菌3","菌3-抗菌薬1",null,null,null,null,"菌3-抗菌薬2",null,null,null,null,"菌3-抗菌薬3",null,null,null,null,"菌3-抗菌薬4",null,null,null,null,"菌3-抗菌薬5",null,null,null,null,"菌3-抗菌薬6",null,null,null,null,"菌3-抗菌薬7",null,null,null,null,"菌3-抗菌薬8",null,null,null,null,"菌3-抗菌薬9",null,null,null,null,"菌3-抗菌薬10",null,null,null,null,"菌3-抗菌薬11",null,null,null,null,"菌3-抗菌薬12",null,null,null,null,"菌3-抗菌薬13",null,null,null,null,"菌3-抗菌薬14",null,null,null,null,"菌3-抗菌薬15",null,null,null,null,"菌3-抗菌薬16",null,null,null,null,"菌3-抗菌薬17",null,null,null,null,"菌3-抗菌薬18",null,null,null,null,"菌3-抗菌薬19",null,null,null,null,"菌3-抗菌薬20",null,null,null,null,"菌3-抗菌薬21",null,null,null,null,"菌3-抗菌薬22",null,null,null,null,"菌3-抗菌薬23",null,null,null,null,"菌3-抗菌薬24",null,null,null,null,"菌3-抗菌薬25",null,null,null,null,"菌3-抗菌薬26",null,null,null,null,"菌3-抗菌薬27",null,null,null,null,"菌3-抗菌薬28",null,null,null,null,"菌3-抗菌薬29",null,null,null,null,"菌3-抗菌薬30",null,null,null,null,"菌4","菌4-抗菌薬1",null,null,null,null,"菌4-抗菌薬2",null,null,null,null,"菌4-抗菌薬3",null,null,null,null,"菌4-抗菌薬4",null,null,null,null,"菌4-抗菌薬5",null,null,null,null,"菌4-抗菌薬6",null,null,null,null,"菌4-抗菌薬7",null,null,null,null,"菌4-抗菌薬8",null,null,null,null,"菌4-抗菌薬9",null,null,null,null,"菌4-抗菌薬10",null,null,null,null,"菌4-抗菌薬11",null,null,null,null,"菌4-抗菌薬12",null,null,null,null,"菌4-抗菌薬13",null,null,null,null,"菌4-抗菌薬14",null,null,null,null,"菌4-抗菌薬15",null,null,null,null,"菌4-抗菌薬16",null,null,null,null,"菌4-抗菌薬17",null,null,null,null,"菌4-抗菌薬18",null,null,null,null,"菌4-抗菌薬19",null,null,null,null,"菌4-抗菌薬20",null,null,null,null,"菌4-抗菌薬21",null,null,null,null,"菌4-抗菌薬22",null,null,null,null,"菌4-抗菌薬23",null,null,null,null,"菌4-抗菌薬24",null,null,null,null,"菌4-抗菌薬25",null,null,null,null,"菌4-抗菌薬26",null,null,null,null,"菌4-抗菌薬27",null,null,null,null,"菌4-抗菌薬28",null,null,null,null,"菌4-抗菌薬29",null,null,null,null,"菌4-抗菌薬30",null,null,null,null,"菌5","菌5-抗菌薬1",null,null,null,null,"菌5-抗菌薬2",null,null,null,null,"菌5-抗菌薬3",null,null,null,null,"菌5-抗菌薬4",null,null,null,null,"菌5-抗菌薬5",null,null,null,null,"菌5-抗菌薬6",null,null,null,null,"菌5-抗菌薬7",null,null,null,null,"菌5-抗菌薬8",null,null,null,null,"菌5-抗菌薬9",null,null,null,null,"菌5-抗菌薬10",null,null,null,null,"菌5-抗菌薬11",null,null,null,null,"菌5-抗菌薬12",null,null,null,null,"菌5-抗菌薬13",null,null,null,null,"菌5-抗菌薬14",null,null,null,null,"菌5-抗菌薬15",null,null,null,null,"菌5-抗菌薬16",null,null,null,null,"菌5-抗菌薬17",null,null,null,null,"菌5-抗菌薬18",null,null,null,null,"菌5-抗菌薬19",null,null,null,null,"菌5-抗菌薬20",null,null,null,null,"菌5-抗菌薬21",null,null,null,null,"菌5-抗菌薬22",null,null,null,null,"菌5-抗菌薬23",null,null,null,null,"菌5-抗菌薬24",null,null,null,null,"菌5-抗菌薬25",null,null,null,null,"菌5-抗菌薬26",null,null,null,null,"菌5-抗菌薬27",null,null,null,null,"菌5-抗菌薬28",null,null,null,null,"菌5-抗菌薬29",null,null,null,null,"菌5-抗菌薬30"]
[null,null,null,null,null,null,"菌","抗菌薬","検査方法","仕切記号","判定値","SIR判定","抗菌薬","検査方法","仕切記号","判定値","SIR判定","抗菌薬","検査方法","仕切記号","判定値","SIR判定","抗菌薬","検査方法","仕切記号","判定値","SIR判定","抗菌薬","検査方法","仕切記号","判定値","SIR判定","抗菌薬","検査方法","仕切記号","判定値","SIR判定","抗菌薬","検査方法","仕切記号","判定値","SIR判定","抗菌薬","検査方法","仕切記号","判定値","SIR判定","抗菌薬","検査方法","仕切記号","判定値","SIR判定","抗菌薬","検査方法","仕切記号","判定値","SIR判定","抗菌薬","検査方法","仕切記号","判定値","SIR判定","抗菌薬","検査方法","仕切記号","判定値","SIR判定","抗菌薬","検査方法","仕切記号","判定値","SIR判定","抗菌薬","検査方法","仕切記号","判定値","SIR判定","抗菌薬","検査方法","仕切記号","判定値","SIR判定","抗菌薬","検査方法","仕切記号","判定値","SIR判定","抗菌薬","検査方法","仕切記号","判定値","SIR判定","抗菌薬","検査方法","仕切記号","判定値","SIR判定","抗菌薬","検査方法","仕切記号","判定値","SIR判定","抗菌薬","検査方法","仕切記号","判定値","SIR判定","抗菌薬","検査方法","仕切記号","判定値","SIR判定","抗菌薬","検査方法","仕切記号","判定値","SIR判定","抗菌薬","検査方法","仕切記号","判定値","SIR判定","抗菌薬","検査方法","仕切記号","判定値","SIR判定","抗菌薬","検査方法","仕切記号","判定値","SIR判定","抗菌薬","検査方法","仕切記号","判定値","SIR判定","抗菌薬","検査方法","仕切記号","判定値","SIR判定","抗菌薬","検査方法","仕切記号","判定値","SIR判定","抗菌薬","検査方法","仕切記号","判定値","SIR判定","抗菌薬","検査方法","仕切記号","判定値","SIR判定","菌","抗菌薬","検査方法","仕切記号","判定値","SIR判定","抗菌薬","検査方法","仕切記号","判定値","SIR判定","抗菌薬","検査方法","仕切記号","判定値","SIR判定","抗菌薬","検査方法","仕切記号","判定値","SIR判定","抗菌薬","検査方法","仕切記号","判定値","SIR判定","抗菌薬","検査方法","仕切記号","判定値","SIR判定","抗菌薬","検査方法","仕切記号","判定値","SIR判定","抗菌薬","検査方法","仕切記号","判定値","SIR判定","抗菌薬","検査方法","仕切記号","判定値","SIR判定","抗菌薬","検査方法","仕切記号","判定値","SIR判定","抗菌薬","検査方法","仕切記号","判定値","SIR判定","抗菌薬","検査方法","仕切記号","判定値","SIR判定","抗菌薬","検査方法","仕切記号","判定値","SIR判定","抗菌薬","検査方法","仕切記号","判定値","SIR判定","抗菌薬","検査方法","仕切記号","判定値","SIR判定","抗菌薬","検査方法","仕切記号","判定値","SIR判定","抗菌薬","検査方法","仕切記号","判定値","SIR判定","抗菌薬","検査方法","仕切記号","判定値","SIR判定","抗菌薬","検査方法","仕切記号","判定値","SIR判定","抗菌薬","検査方法","仕切記号","判定値","SIR判定","抗菌薬","検査方法","仕切記号","判定値","SIR判定","抗菌薬","検査方法","仕切記号","判定値","SIR判定","抗菌薬","検査方法","仕切記号","判定値","SIR判定","抗菌薬","検査方法","仕切記号","判定値","SIR判定","抗菌薬","検査方法","仕切記号","判定値","SIR判定","抗菌薬","検査方法","仕切記号","判定値","SIR判定","抗菌薬","検査方法","仕切記号","判定値","SIR判定","抗菌薬","検査方法","仕切記号","判定値","SIR判定","抗菌薬","検査方法","仕切記号","判定値","SIR判定","抗菌薬","検査方法","仕切記号","判定値","SIR判定","菌","抗菌薬","検査方法","仕切記号","判定値","SIR判定","抗菌薬","検査方法","仕切記号","判定値","SIR判定","抗菌薬","検査方法","仕切記号","判定値","SIR判定","抗菌薬","検査方法","仕切記号","判定値","SIR判定","抗菌薬","検査方法","仕切記号","判定値","SIR判定","抗菌薬","検査方法","仕切記号","判定値","SIR判定","抗菌薬","検査方法","仕切記号","判定値","SIR判定","抗菌薬","検査方法","仕切記号","判定値","SIR判定","抗菌薬","検査方法","仕切記号","判定値","SIR判定","抗菌薬","検査方法","仕切記号","判定値","SIR判定","抗菌薬","検査方法","仕切記号","判定値","SIR判定","抗菌薬","検査方法","仕切記号","判定値","SIR判定","抗菌薬","検査方法","仕切記号","判定値","SIR判定","抗菌薬","検査方法","仕切記号","判定値","SIR判定","抗菌薬","検査方法","仕切記号","判定値","SIR判定","抗菌薬","検査方法","仕切記号","判定値","SIR判定","抗菌薬","検査方法","仕切記号","判定値","SIR判定","抗菌薬","検査方法","仕切記号","判定値","SIR判定","抗菌薬","検査方法","仕切記号","判定値","SIR判定","抗菌薬","検査方法","仕切記号","判定値","SIR判定","抗菌薬","検査方法","仕切記号","判定値","SIR判定","抗菌薬","検査方法","仕切記号","判定値","SIR判定","抗菌薬","検査方法","仕切記号","判定値","SIR判定","抗菌薬","検査方法","仕切記号","判定値","SIR判定","抗菌薬","検査方法","仕切記号","判定値","SIR判定","抗菌薬","検査方法","仕切記号","判定値","SIR判定","抗菌薬","検査方法","仕切記号","判定値","SIR判定","抗菌薬","検査方法","仕切記号","判定値","SIR判定","抗菌薬","検査方法","仕切記号","判定値","SIR判定","抗菌薬","検査方法","仕切記号","判定値","SIR判定","菌","抗菌薬","検査方法","仕切記号","判定値","SIR判定","抗菌薬","検査方法","仕切記号","判定値","SIR判定","抗菌薬","検査方法","仕切記号","判定値","SIR判定","抗菌薬","検査方法","仕切記号","判定値","SIR判定","抗菌薬","検査方法","仕切記号","判定値","SIR判定","抗菌薬","検査方法","仕切記号","判定値","SIR判定","抗菌薬","検査方法","仕切記号","判定値","SIR判定","抗菌薬","検査方法","仕切記号","判定値","SIR判定","抗菌薬","検査方法","仕切記号","判定値","SIR判定","抗菌薬","検査方法","仕切記号","判定値","SIR判定","抗菌薬","検査方法","仕切記号","判定値","SIR判定","抗菌薬","検査方法","仕切記号","判定値","SIR判定","抗菌薬","検査方法","仕切記号","判定値","SIR判定","抗菌薬","検査方法","仕切記号","判定値","SIR判定","抗菌薬","検査方法","仕切記号","判定値","SIR判定","抗菌薬","検査方法","仕切記号","判定値","SIR判定","抗菌薬","検査方法","仕切記号","判定値","SIR判定","抗菌薬","検査方法","仕切記号","判定値","SIR判定","抗菌薬","検査方法","仕切記号","判定値","SIR判定","抗菌薬","検査方法","仕切記号","判定値","SIR判定","抗菌薬","検査方法","仕切記号","判定値","SIR判定","抗菌薬","検査方法","仕切記号","判定値","SIR判定","抗菌薬","検査方法","仕切記号","判定値","SIR判定","抗菌薬","検査方法","仕切記号","判定値","SIR判定","抗菌薬","検査方法","仕切記号","判定値","SIR判定","抗菌薬","検査方法","仕切記号","判定値","SIR判定","抗菌薬","検査方法","仕切記号","判定値","SIR判定","抗菌薬","検査方法","仕切記号","判定値","SIR判定","抗菌薬","検査方法","仕切記号","判定値","SIR判定","抗菌薬","検査方法","仕切記号","判定値","SIR判定","菌","抗菌薬","検査方法","仕切記号","判定値","SIR判定","抗菌薬","検査方法","仕切記号","判定値","SIR判定","抗菌薬","検査方法","仕切記号","判定値","SIR判定","抗菌薬","検査方法","仕切記号","判定値","SIR判定","抗菌薬","検査方法","仕切記号","判定値","SIR判定","抗菌薬","検査方法","仕切記号","判定値","SIR判定","抗菌薬","検査方法","仕切記号","判定値","SIR判定","抗菌薬","検査方法","仕切記号","判定値","SIR判定","抗菌薬","検査方法","仕切記号","判定値","SIR判定","抗菌薬","検査方法","仕切記号","判定値","SIR判定","抗菌薬","検査方法","仕切記号","判定値","SIR判定","抗菌薬","検査方法","仕切記号","判定値","SIR判定","抗菌薬","検査方法","仕切記号","判定値","SIR判定","抗菌薬","検査方法","仕切記号","判定値","SIR判定","抗菌薬","検査方法","仕切記号","判定値","SIR判定","抗菌薬","検査方法","仕切記号","判定値","SIR判定","抗菌薬","検査方法","仕切記号","判定値","SIR判定","抗菌薬","検査方法","仕切記号","判定値","SIR判定","抗菌薬","検査方法","仕切記号","判定値","SIR判定","抗菌薬","検査方法","仕切記号","判定値","SIR判定","抗菌薬","検査方法","仕切記号","判定値","SIR判定","抗菌薬","検査方法","仕切記号","判定値","SIR判定","抗菌薬","検査方法","仕切記号","判定値","SIR判定","抗菌薬","検査方法","仕切記号","判定値","SIR判定","抗菌薬","検査方法","仕切記号","判定値","SIR判定","抗菌薬","検査方法","仕切記号","判定値","SIR判定","抗菌薬","検査方法","仕切記号","判定値","SIR判定","抗菌薬","検査方法","仕切記号","判定値","SIR判定","抗菌薬","検査方法","仕切記号","判定値","SIR判定","抗菌薬","検査方法","仕切記号","判定値","SIR判定"]
["sample","A0001",1,501,20150101,"A0001-0001",1301,2301,1,1,8,"S"]

{"sheet":"(参照)登録情報一覧登録規則","index":3,"n_rows":13,"n_cols":3,"rows_kept":13,"cut":false,"hidden":false,"merged":[]}
["項目名","設定内容","例"]
["医療機関コード","すべて同一の医療機関コード(レセプトコード)\n7桁",1234567]
["患者ID","15桁以内の患者ID","A000001"]
["入院外来","入院外来区分（1:外来, 2:入院）",2]
["検査材料","下記のいずれか\n・「マスタ(検査材料)」シートの対象コード\n・システムで出力したコードまたは名称\n (「変換マスタ(検査材料)」シートの作成が必須)",101]
["検体提出日","検体提出日(yyyyymmdd形式)",20150131]
["検体番号","15桁以内の検体番号","A000001-001"]
["菌","菌1-5の最大5つ設定\n\n下記のいずれか\n・「マスタ(菌)」シートの対象コード\n・システムで出力したコードまたは名称\n (「変換マスタ(菌)」シートの作成が必須)",1301]
["抗菌薬","各菌(1-5)でそれぞれ抗菌薬を最大30薬剤設定\n\n下記のいずれか\n・「マスタ(抗菌薬)」シートの対象コード\n・システムで出力したコードまたは名称\n (「変換マスタ(抗菌薬)」シートの作成が必須)",2301]
["検査方法","対象の菌、抗菌薬の検査方法を、下記のいずれかで設定\n・39:微量液体希釈放(MIC)\n・51:ディスク法(阻止円径)\n・99:その他(SIR判定のみ)",39]
["仕切記号","微量液体希釈法で検査した場合のみ、検査結果の仕切記号を下記のいずれかで設定\n・1:<\n・2:>\n・3:≦\n・4:≧\n・(空白):＝",1]
["判定値","MIC値または阻止円径を数値で設定",8]
["SIR判定","SIR判定(S,I,R)","S"]

{"sheet":"変換マスタ(検査材料)","index":4,"n_rows":4,"n_cols":2,"rows_kept":4,"cut":false,"hidden":false,"merged":[]}
["変換マスタ（検査材料）"]
["変換元(コード・名称)","変換コード"]
["(sample)15371-651",101]
["(sample)BLOOD",401]

{"sheet":"変換マスタ(菌)","index":5,"n_rows":4,"n_cols":2,"rows_kept":4,"cut":false,"hidden":false,"merged":[]}
["変換マスタ（菌）"]
["変換元(コード・名称)","変換コード"]
["(sample)53-13",4402]
["(sample)MRSA",1303]

{"sheet":"変換マスタ(抗菌薬)","index":6,"n_rows":4,"n_cols":2,"rows_kept":4,"cut":false,"hidden":false,"merged":[]}
["変換マスタ（菌）"]
["変換元(コード・名称)","変換コード"]
["(sample)51765387",1101]
["(sample)PCG",1201]

{"sheet":"マスタ(検査材料)","index":7,"n_rows":51,"n_cols":2,"rows_kept":51,"cut":false,"hidden":false,"merged":[]}
["コ－ド","名称"]
[101,"[口腔・気道・呼吸器] 喀出痰"]
[102,"[口腔・気道・呼吸器] 気管内採痰"]
[103,"[口腔・気道・呼吸器] 気管支洗浄液"]
[104,"[口腔・気道・呼吸器] 咽頭粘液"]
[105,"[口腔・気道・呼吸器] 鼻腔内"]
[106,"[口腔・気道・呼吸器] 口腔内"]
[107,"[口腔・気道・呼吸器] 生検材料(肺)"]
[109,"[口腔・気道・呼吸器] その他(呼吸器)"]
[201,"[泌尿器・生殖器] 自然排尿"]
[202,"[泌尿器・生殖器] 採尿カテ－テル尿"]
[203,"[泌尿器・生殖器] 留置カテ－テル尿"]
[204,"[泌尿器・生殖器] 尿道分泌物"]
[205,"[泌尿器・生殖器] 膣分泌物"]
[206,"[泌尿器・生殖器] カテーテル尿（採尿、留置カテの区別不能）"]
[209,"[泌尿器・生殖器] その他(泌尿・生殖)"]
[301,"[消化器] 糞便"]
[302,"[消化器] 胃・十二指腸液"]
[303,"[消化器] 胆汁"]
[304,"[消化器] 生検材料(消化管)"]
[309,"[消化器] その他(消化管)"]
[401,"[血液・穿刺液] 静脈血"]
[402,"[血液・穿刺液] 動脈血"]
[403,"[血液・穿刺液] 髄液"]
[404,"[血液・穿刺液] 胸水"]
[405,"[血液・穿刺液] 腹水"]
[406,"[血液・穿刺液] 関節液"]
[407,"[血液・穿刺液] 骨髄液"]
[408,"[血液・穿刺液] 心嚢水"]
[409,"[血液・穿刺液] その他(穿刺液)"]
[501,"[その他] 耳分泌物"]
[502,"[その他] 眼分泌物"]
[503,"[その他] 皮膚"]
[504,"[その他] 褥創"]
[505,"[その他] 羊水"]
[511,"[その他] 開放性膿"]
[512,"[その他] 閉鎖性膿"]
[513,"[その他] 創部"]
[521,"[その他] CAPD(持続腹膜透析)排液"]
[522,"[その他] 中心静脈カテ－テル先端"]
[523,"[その他] カテ－テル刺入部"]
[524,"[その他] その他のカテ－テル"]
[525,"[その他] 胸腔ドレ－ン排液"]
[526,"[その他] 胸腔ドレ－ン先端"]
[527,"[その他] 腹腔ドレ－ン排液"]
[528,"[その他] 腹腔ドレ－ン先端"]
[529,"[その他] ドレ－ン刺入部"]
[530,"[その他] その他のドレ－ン"]
[541,"[その他] 生検材料(リンパ節)"]
[542,"[その他] その他の生検・手術材料"]
[999,"[その他] その他の材料"]

{"sheet":"マスタ(菌)","index":8,"n_rows":543,"n_cols":2,"rows_kept":543,"cut":false,"hidden":false,"merged":[]}
["コード","菌名"]
[1011,"Gram-positive cocci"]
[1012,"Gram-positive bacilli"]
[1013,"Gram-negative cocci"]
[1014,"Gram-negative bacilli"]
[1015,"Yeasts"]
[1100,"Streptococcus sp."]
[1101,"α-Streptococcus"]
[1102,"β-Streptococcus"]
[1103,"γ-Streptococcus"]
[1111,"Streptococcus pyogenes"]
[1114,"Streptococcus agalactiae"]
[1117,"C群β-Streptococcus"]
[1120,"F群β-Streptococcus"]
[1123,"G群β-Streptococcus"]
[1131,"Streptococcus pneumoniae"]
[1141,"Streptococcus mutans"]
[1142,"Streptococcus sanguis"]
[1143,"Streptococcus mitis"]
[1144,"Streptococcus anginosus"]
[1145,"Streptococcus intermedius"]
[1146,"Streptococcus bovis"]
[1147,"Streptococcus salivarius"]
[1148,"Streptococcus equinus"]
[1149,"Streptococcus uberis"]
[1150,"Streptococcus constellatus subsp. constellatus"]
[1151,"Streptococcus acidominimus"]
[1200,"Enterococcus sp."]
[1201,"Enterococcus faecalis"]
[1202,"Enterococcus faecalis (VRE)"]
[1205,"Enterococcus faecium"]
[1206,"Enterococcus faecium (VRE)"]
[1209,"Enterococcus avium"]
[1210,"Enterococcus avium (VRE)"]
[1213,"Enterococcus durans"]
[1214,"Enterococcus gallinarum"]
[1215,"Enterococcus casseliflavus"]
[1216,"Enterococcus casseliflavus/gallinarum"]
[1217,"Enterococcus hirae"]
[1300,"Staphylococcus sp."]
[1301,"Staphylococcus aureus subsp. aureus"]
[1303,"Staphylococcus aureus (MRSA)"]
[1304,"Staphylococcus aureus (MSSA)"]
[1305,"Staphylococcus aureus (MSSA) (β非産生)"]
[1306,"Staphylococcus aureus (MSSA) (β産生)"]
[1311,"Staphylococcus ,coagulase negative (CNS)"]
[1312,"Staphylococcus epidermidis"]
[1313,"Staphylococcus saprophyticus subsp. saprophyticus"]
[1314,"Staphylococcus hominis subsp. hominis"]
[1315,"Staphylococcus warneri"]
[1316,"Staphylococcus lentus"]
[1317,"Staphylococcus auricularis"]
[1318,"Staphylococcus simulans"]
[1319,"Staphylococcus cohnii subsp. cohnii"]
[1320,"Staphylococcus xylosus"]
[1321,"Staphylococcus sciuri subsp. sciuri"]
[1322,"Staphylococcus intermedius"]
[1323,"Staphylococcus hyicus"]
[1324,"Staphylococcus haemolyticus"]
[1325,"Staphylococcus capitis subsp. capitis"]
[1400,"Micrococcus sp."]
[1500,"Lactococcus sp."]
[1501,"Lactococcus lactis subsp. lactis"]
[1600,"Aerococcus sp."]
[1800,"Neisseria sp."]
[1801,"Neisseria gonorrhoeae"]
[1802,"Neisseria gonorrhoeae (β非産生)"]
[1803,"Neisseria gonorrhoeae (β産生)"]
[1805,"Neisseria meningitidis"]
[1850,"Moraxella (Branhamella) sp."]
[1851,"Moraxella (Branhamella) catarrhalis"]
[2000,"Escherichia sp."]
[2001,"Escherichia coli"]
[2002,"Escherichia coli ,pathogenic"]
[2003,"Escherichia coli ,enterohemorrhagic (EHEC)"]
[2004,"Escherichia coli ,enteroinvasive (EIEC)"]
[2005,"Escherichia coli ,enteropathogenic (EPEC)"]
[2006,"Escherichia coli ,enterotoxin-producing (ETEC)"]
[2007,"Escherichia coli ,enteroaggregative (EAEC)"]
[2011,"Escherichia hermannii"]
[2012,"Escherichia vulneris"]
[2050,"Citrobacter sp."]
[2051,"Citrobacter freundii"]
[2052,"Citrobacter koseri"]
[2053,"Citrobacter amalonaticus"]
[2055,"Citrobacter braakii"]
[2100,"Serratia sp."]
[2101,"Serratia marcescens subsp. marcescens"]
[2102,"Serratia liquefaciens"]
[2103,"Serratia plymuthica"]
[2104,"Serratia rubidaea"]
[2105,"Serratia odorifera"]
[2150,"Enterobacter sp."]
[2151,"Enterobacter cloacae"]
[2152,"Enterobacter aerogenes"]
[2153,"Enterobacter sakazakii"]
[2154,"Enterobacter gergoviae"]
[2155,"Enterobacter asburiae"]
[2156,"Enterobacter cancerogenus"]
[2170,"Pantoea sp."]
[2171,"Pantoea agglomerans"]
[2200,"Proteus sp."]
[2201,"Proteus mirabilis"]
[2202,"Proteus vulgaris"]
[2203,"Proteus penneri"]
[2250,"Morganella sp."]
[2251,"Morganella morganii subsp. morganii"]
[2300,"Providencia sp."]
[2301,"Providencia rettgeri"]
[2304,"Providencia alcalifaciens"]
[2305,"Providencia stuartii"]
[2350,"Klebsiella sp."]
[2351,"Klebsiella pneumoniae subsp. pneumoniae"]
[2352,"Klebsiella oxytoca"]
[2353,"Klebsiella pneumoniae subsp. ozaenae"]
[2354,"Klebsiella pneumoniae subsp. rhinoscleromatis"]
[2400,"Yersinia sp."]
[2401,"Yersinia enterocolitica subsp. enterocolitica"]
[2402,"Yersinia pseudotuberculosis"]
[2403,"Yersinia pestis"]
[2450,"Salmonella sp."]
[2451,"Salmonella Typhi"]
[2452,"Salmonella Paratyphi A"]
[2453,"Salmonella sp. (S. Typhi, S. Paratyphi A以外)"]
[2454,"Salmonella arizonae"]
[2455,"Salmonella Enteritidis"]
[2456,"Salmonella Typhimurium"]
[2500,"Shigella sp."]
[2501,"Shigella flexneri"]
[2502,"Shigella sonnei"]
[2503,"Shigella dysenteriae"]
[2504,"Shigella boydii"]
[2610,"Tatumella sp."]
[2611,"Tatumella ptyseos"]
[2620,"Edwardsiella sp."]
[2621,"Edwardsiella tarda"]
[2630,"Hafnia sp."]
[2631,"Hafnia alvei"]
[2640,"Cedecea sp."]
[2641,"Cedecea davisae"]
[2650,"Kluyvera sp."]
[2651,"Kluyvera ascorbata"]
[2660,"Leclercia sp."]
[2661,"Leclercia adecarboxylata"]
[2670,"Buttiauxella sp."]
[2671,"Buttiauxella agrestis"]
[2680,"Ewingella sp."]
[2681,"Ewingella americana"]
[2690,"Rahnella sp."]
[2691,"Rahnella aquatilis"]
[3000,"Vibrio sp."]
[3001,"Vibrio cholerae O-1"]
[3002,"Vibrio cholerae O-139"]
[3003,"Vibrio cholerae non O-1"]
[3004,"Vibrio parahaemolyticus"]
[3005,"Vibrio fluvialis"]
[3006,"Vibrio mimicus"]
[3007,"Vibrio vulnificus"]
[3008,"Vibrio alginolyticus"]
[3009,"Vibrio furnissii"]
[3050,"Aeromonas sp."]
[3051,"Aeromonas hydrophila subsp. hydrophila"]
[3052,"Aeromonas sobria"]
[3053,"Aeromonas caviae"]
[3100,"Pasteurella sp."]
[3101,"Pasteurella multocida subsp. multocida"]
[3150,"Plesiomonas sp."]
[3151,"Plesiomonas shigelloides"]
[3200,"Haemophilus sp."]
[3201,"Haemophilus influenzae"]
[3202,"Haemophilus influenzae (β非産生)"]
[3203,"Haemophilus influenzae (β産生)"]
[3205,"Haemophilus influenzae biotypeⅠ"]
[3208,"Haemophilus influenzae biotypeⅡ"]
[3211,"Haemophilus influenzae biotypeⅢ"]
[3214,"Haemophilus influenzae biotypeⅣ"]
[3217,"Haemophilus influenzae biotypeⅤ"]
[3220,"Haemophilus influenzae biotypeⅥ‐1"]
[3223,"Haemophilus influenzae biotypeⅥ‐2"]
[3230,"Haemophilus parainfluenzae"]
[3240,"Haemophilus haemolyticus"]
[3241,"Haemophilus parahaemolyticus"]
[3242,"Haemophilus haemoglobinophilus"]
[3243,"Haemophilus ducreyi"]
[3244,"Haemophilus aphrophilus"]
[3245,"Haemophilus paraphrophilus"]
[3250,"Gardnerella sp."]
[3251,"Gardnerella vaginalis"]
[3270,"Bordetella sp."]
[3271,"Bordetella pertussis"]
[3272,"Bordetella parapertussis"]
[3273,"Bordetella bronchiseptica"]
[3300,"Legionella sp."]
[3301,"Legionella pneumophila subsp. pneumophila"]
[3400,"Actinobacillus sp."]
[3401,"Actinobacillus actinomycetemcomitans"]
[3430,"Capnocytophaga sp."]
[3450,"Cardiobacterium sp."]
[3451,"Cardiobacterium hominis"]
[3470,"Eikenella sp."]
[3471,"Eikenella corrodens"]
[3500,"Francisella sp."]
[3501,"Francisella tularensis subsp. tularensis"]
[3550,"Brucella sp."]
[3551,"Brucella melitensis biovar. abortus"]
[3553,"Brucella melitensis biovar. suis"]
[3554,"Brucella melitensis biovar. canis"]
[3556,"Brucella melitensis"]
[3700,"Campylobacter sp."]
[3701,"Campylobacter jejuni subsp. jejuni"]
[3702,"Campylobacter coli"]
[3703,"Campylobacter fetus subsp. fetus"]
[3704,"Campylobacter jejuni/coli"]
[3730,"Helicobacter sp."]
[3731,"Helicobacter pylori"]
[3800,"Kingella sp."]
[3801,"Kingella kingae"]
[4000,"Pseudomonas sp."]
[4001,"Pseudomonas aeruginosa"]
[4003,"Ralstonia pickettii"]
[4011,"Pseudomonas putida"]
[4012,"Pseudomonas fluorescens"]
[4050,"Burkholderia sp."]
[4051,"Burkholderia cepacia"]
[4052,"Burkholderia mallei"]
[4053,"Burkholderia pseudomallei"]
[4100,"Alcaligenes sp."]
[4101,"Alcaligenes faecalis subsp. faecalis"]
[4102,"Alcaligenes xylosoxidans subsp. xylosoxidans"]
[4150,"Stenotrophomonas sp."]
[4151,"Stenotrophomonas maltophilia"]
[4200,"Flavobacterium sp."]
[4201,"Myroides odoratus"]
[4210,"Myroides sp."]
[4250,"Chryseobacterium sp."]
[4251,"Chryseobacterium meningosepticum"]
[4252,"Chryseobacterium indologenes"]
[4300,"Sphingobacterium sp."]
[4301,"Sphingobacterium multivorum"]
[4302,"Sphingobacterium spiritivorum"]
[4350,"Shewanella sp."]
[4351,"Shewanella putrefaciens"]
[4400,"Acinetobacter sp."]
[4401,"Acinetobacter calcoaceticus"]
[4402,"Acinetobacter baumannii"]
[4403,"Acinetobacter lwoffii"]
[4450,"Rhizobium sp."]
[4451,"Rhizobium radiobacter"]
[4500,"Moraxella sp."]
[4501,"Moraxella lacunata"]
[4502,"Moraxella osloensis"]
[4503,"Moraxella bovis"]
[4550,"Chryseomonas sp."]
[4551,"Chryseomonas luteola"]
[4600,"Comamonas sp."]
[4601,"Delftia acidovorans"]
[4610,"Delftia sp."]
[4650,"Flavimonas sp."]
[4651,"Flavimonas oryzihabitans"]
[5000,"Peptostreptococcus sp."]
[5001,"Finegoldia magna"]
[5002,"Anaerococcus prevotii"]
[5003,"Peptoniphilus asaccharolyticus"]
[5004,"Peptostreptococcus anaerobius"]
[5005,"Ruminococcus productus"]
[5006,"Micromonas micros"]
[5020,"Peptococcus sp."]
[5021,"Peptococcus niger"]
[5030,"Anaerococcus sp."]
[5033,"Finegoldia sp."]
[5036,"Parvimonas sp."]
[5039,"Peptoniphilus sp."]
[5042,"Ruminococcus sp."]
[5050,"Clostridium sp."]
[5051,"Clostridium difficile"]
[5052,"Clostridium perfringens"]
[5053,"Clostridium tetani"]
[5054,"Clostridium botulinum"]
[5055,"Clostridium septicum"]
[5100,"Eubacterium sp."]
[5101,"Eggerthella lenta"]
[5110,"Eggerthella sp."]
[5150,"Propionibacterium sp."]
[5151,"Propionibacterium acnes"]
[5200,"Bifidobacterium sp."]
[5400,"Mobiluncus sp."]
[5500,"Bacteroides sp."]
[5501,"Bacteroides fragilis"]
[5502,"Bacteroides ovatus"]
[5503,"Bacteroides thetaiotaomicron"]
[5504,"Bacteroides vulgatus"]
[5505,"Bacteroides distasonis"]
[5506,"Bacteroides uniformis"]
[5507,"Bacteroides caccae"]
[5550,"Prevotella sp."]
[5551,"Prevotella melaninogenica"]
[5552,"Prevotella oralis"]
[5553,"Prevotella ruminicola subsp. ruminicola"]
[5554,"Prevotella bivia"]
[5555,"Prevotella buccae"]
[5556,"Prevotella denticola"]
[5557,"Prevotella loescheii"]
[5558,"Prevotella intermedia"]
[5559,"Prevotella corporis"]
[5600,"Porphyromonas sp."]
[5601,"Porphyromonas asaccharolytica"]
[5602,"Porphyromonas gingivalis"]
[5650,"Fusobacterium sp."]
[5651,"Fusobacterium nucleatum subsp. nucleatum"]
[5652,"Fusobacterium varium"]
[5653,"Fusobacterium necrophorum subsp. necrophorum"]
[5654,"Fusobacterium mortiferum"]
[5800,"Veillonella sp."]
[5801,"Veillonella parvula"]
[5900,"Lactobacillus sp."]
[6000,"Corynebacterium sp."]
[6001,"Corynebacterium diphtheriae"]
[6002,"Corynebacterium jeikeium"]
[6050,"Listeria sp."]
[6051,"Listeria monocytogenes"]
[6100,"Bacillus sp."]
[6101,"Bacillus cereus"]
[6102,"Bacillus subtilis subsp. subtilis"]
[6103,"Bacillus anthracis"]
[6200,"Nocardia sp."]
[6201,"Nocardia asteroides"]
[6203,"Nocardia brasiliensis"]
[6300,"Actinomyces sp."]
[6301,"Actinomyces israelii"]
[6500,"Mycobacterium sp."]
[6501,"Mycobacterium tuberculosis"]
[6502,"Mycobacterium tuberculosis complex"]
[6503,"Mycobacterium avium subsp. avium"]
[6504,"Mycobacterium intracellulare"]
[6505,"Mycobacterium avium complex"]
[6506,"Mycobacterium kansasii"]
[6507,"Mycobacterium marinum"]
[6508,"Mycobacterium scrofulaceum"]
[6509,"Mycobacterium gordonae"]
[6510,"Mycobacterium fortuitum subsp. fortuitum"]
[6511,"Mycobacterium chelonae subsp. chelonae"]
[6512,"Mycobacterium abscessus"]
[7000,"Candida sp."]
[7001,"Candida albicans"]
[7002,"Candida tropicalis"]
[7003,"Candida glabrata"]
[7004,"Candida parapsilosis"]
[7005,"Candida krusei"]
[7006,"Candida guilliermondii"]
[7007,"Candida dubliniensis"]
[7110,"Cryptococcus sp."]
[7111,"Cryptococcus neoformans"]
[7120,"Trichosporon sp."]
[7122,"Trichosporon capitatum"]
[7123,"Trichosporon asahii"]
[7124,"Trichosporon mucoides"]
[7130,"Rhodotorula sp."]
[7131,"Rhodotorula rubra"]
[7140,"Saccharomyces sp."]
[7141,"Saccharomyces cerevisiae"]
[7150,"Malassezia sp."]
[7151,"Malassezia furfur"]
[7300,"Aspergillus sp."]
[7301,"Aspergillus flavus"]
[7302,"Aspergillus fumigatus"]
[7303,"Aspergillus nidulans"]
[7304,"Aspergillus niger"]
[7305,"Aspergillus terreus"]
[7310,"Penicillium sp."]
[7311,"Penicillium marneffei"]
[7320,"Trichophyton sp."]
[7321,"Trichophyton rubrum"]
[7322,"Trichophyton mentagrophytes"]
[7323,"Trichophyton tonsurans"]
[7330,"Microsporum sp."]
[7331,"Microsporum canis"]
[7332,"Microsporum gypseum"]
[7340,"Cladosporium sp."]
[7350,"Fonsecaea sp."]
[7351,"Fonsecaea pedrosoi"]
[7360,"Alternaria sp."]
[7361,"Alternaria tenuissima"]
[7362,"Alternaria alternata"]
[7400,"Epidermophyton sp."]
[7401,"Epidermophyton floccosum"]
[7410,"Sporothrix sp."]
[7411,"Sporothrix schenckii"]
[7420,"Fusarium sp."]
[7421,"Fusarium solani"]
[7430,"Absidia sp."]
[7431,"Absidia corymbifera"]
[7500,"Mucor sp."]
[7501,"Mucor circinelloides"]
[7510,"Rhizomucor sp."]
[7511,"Rhizomucor pusillus"]
[7520,"Rhizopus sp."]
[7521,"Rhizopus oryzae"]
[7530,"Coccidioides sp."]
[7531,"Coccidioides immitis"]
[7540,"Histoplasma sp."]
[7541,"Histoplasma capsulatum"]
[7550,"Blastomyces sp."]
[7551,"Blastomyces dermatitidis"]
[7560,"Paracoccidioides sp."]
[7561,"Paracoccidioides brasiliensis"]
[7900,"Pneumocystis sp."]
[7901,"Pneumocystis carinii"]
[7902,"Pneumocystis jirovecii"]
[8000,"Mycoplasma sp."]
[8001,"Mycoplasma pneumoniae"]
[8100,"Ureaplasma sp."]
[8101,"Ureaplasma urealyticum"]
[8200,"Chlamydia sp."]
[8201,"Chlamydia trachomatis"]
[8202,"Chlamydophila psittaci"]
[8203,"Chlamydophila pneumoniae"]
[8204,"Chlamydophila pecorum"]
[8210,"Chlamydophila sp."]
[8300,"Treponema sp."]
[8301,"Treponema pallidum"]
[8400,"Leptospira sp."]
[8401,"Leptospira interrogans"]
[8402,"Leptotrichia buccalis"]
[8500,"Borrelia sp."]
[8501,"Borrelia burgdorferi"]
[8600,"Rickettsia sp."]
[9000,"Entamoeba sp."]
[9001,"Entamoeba histolytica"]
[9010,"Cryptosporidium sp."]
[9011,"Cryptosporidium parvum"]
[9012,"Cryptosporidium muris"]
[9020,"Cyclospora sp."]
[9021,"Cyclospora cayetanensis"]
[9030,"Isospora sp."]
[9040,"Giardia sp."]
[9041,"Giardia lamblia"]
[9050,"Balantidium sp."]
[9051,"Balantidium coli"]
[9060,"Acanthamoeba sp."]
[9070,"Trichomonas sp."]
[9071,"Trichomonas vaginalis"]
[9080,"Toxoplasma sp."]
[9081,"Toxoplasma gondii"]
[9801,"Acholeplasma"]
[9802,"Acidaminococcus"]
[9803,"Acidovorax"]
[9805,"Actinomadura"]
[9806,"Afipia"]
[9807,"Alloiococcus"]
[9808,"Anaerobiospirillum"]
[9809,"Anaerorhabdus"]
[9810,"Arcanobacterium"]
[9811,"Arthrobacter"]
[9812,"Atopobium"]
[9813,"Balneatrix"]
[9814,"Bartonella"]
[9815,"Bergeyella"]
[9816,"Bilophila"]
[9817,"Brachyspira"]
[9818,"Bradyrhizobium"]
[9819,"Brevibacterium"]
[9820,"Brevundimonas"]
[9821,"Brochothrix"]
[9822,"Budvicia"]
[9823,"Butyrivibrio"]
[9824,"Calymmatobacterium"]
[9825,"Catonella"]
[9826,"Cellulomonas"]
[9827,"Chromobacterium"]
[9829,"Coxiella"]
[9830,"Dermabacter"]
[9831,"Dermacoccus"]
[9832,"Dermatophilus"]
[9834,"Desulfovibrio"]
[9835,"Dialister"]
[9836,"Dolosigranulum"]
[9837,"Ehrlichia"]
[9838,"Empedobacter"]
[9839,"Erwinia"]
[9840,"Erysipelothrix"]
[9841,"Fibrobacter"]
[9842,"Gemella"]
[9843,"Globicatella"]
[9844,"Gordonia"]
[9846,"Hallella"]
[9847,"Halococcus"]
[9848,"Janthinobacterium"]
[9849,"Johnsonella"]
[9850,"Kocuria"]
[9851,"Kurthia"]
[9852,"Kytococcus"]
[9853,"Lautropia"]
[9854,"Lawsonia"]
[9855,"Leminorella"]
[9857,"Leuconostoc"]
[9858,"Listonella"]
[9859,"Methylobacterium"]
[9860,"Mitsuokella"]
[9861,"Moellerella"]
[9862,"Nesterenkonia"]
[9863,"Nocardiopsis"]
[9864,"Obesumbacterium"]
[9865,"Ochrobactrum"]
[9866,"Oenococcus"]
[9867,"Oerskovia"]
[9868,"Oligella"]
[9869,"Orientia"]
[9870,"Paenibacillus"]
[9871,"Pediococcus"]
[9872,"Photobacterium"]
[9873,"Photorhabdus"]
[9874,"Pragia"]
[9875,"Propioniferax"]
[9876,"Psychrobacter"]
[9877,"Rhodococcus"]
[9878,"Riemerella"]
[9879,"Rikenella"]
[9880,"Rothia"]
[9882,"Sanguibacter"]
[9883,"Sebaldella"]
[9884,"Selenomonas"]
[9885,"Serpulina"]
[9886,"Sphingomonas"]
[9887,"Spiroplasma"]
[9889,"Streptobacillus"]
[9890,"Streptomyces"]
[9891,"Succinivibrio"]
[9892,"Suttonella"]
[9893,"Taylorella"]
[9894,"Tetragenococcus"]
[9895,"Thermoactinomyces"]
[9896,"Tissierella"]
[9897,"Trabulsiella"]
[9898,"Tsukamurella"]
[9899,"Turicella"]
[9900,"Vagococcus"]
[9901,"Weeksella"]
[9902,"Weissella"]
[9903,"Wolinella"]
[9904,"Xenorhabdus"]
[9905,"Yokenella"]
[9998,"その他の菌種 (同定不能の菌を含む)"]
[9999,"コメントのみ"]

{"sheet":"マスタ(抗菌薬)","index":9,"n_rows":268,"n_cols":2,"rows_kept":268,"cut":false,"hidden":false,"merged":[]}
["コード","名称"]
[1100,"Monobactams:モノバクタム系"]
[1101,"AZT:アズトレオナム"]
[1106,"CRMN:カルモナム"]
[1200,"Penicillins:ペニシリン系"]
[1201,"PCG:ベンジルペニシリン"]
[1202,"PCV:フェノキシメチルペニシリン"]
[1206,"DBECPCG:ベンジルペニシリンベンザチン"]
[1207,"DMPPC:メチシリン"]
[1208,"MPIPC:オキサシリン"]
[1211,"PEPC:フェネチシリンカリウム"]
[1212,"MCIPC:クロキサシリン"]
[1213,"MDIPC:ジクロキサシリン"]
[1214,"MFIPC:フルクロキサシリン"]
[1216,"ABPC:アンピシリン"]
[1217,"IPABPC:ヘタシリン"]
[1221,"BAPC:バカンピシリン"]
[1222,"MZPC:メゾシリン"]
[1226,"TAPC:塩酸タランピシリン"]
[1231,"SBTPC:トシル酸スルタミシリン"]
[1236,"LAPC:レナンピシリン"]
[1241,"ACPC:シクラシリン"]
[1246,"AMPC:アモキシシリン"]
[1251,"ASPC:アスポキシシリン"]
[1252,"CBPC:カルベニシリン"]
[1256,"SBPC:スルベニシリン"]
[1257,"CIPC:カリンダシリン"]
[1258,"CFPC:カルフェシリン"]
[1260,"MPC:メシリナム"]
[1261,"PMPC:ピブメシリナム"]
[1266,"PIPC:ピペラシリン"]
[1267,"TIPC:チカルシリン"]
[1271,"CVA/AMPC:クラブラン酸・アモキシシリン"]
[1276,"CVA/TIPC:クラブラン酸・チカルシシリン"]
[1281,"SBT/ABPC:スルバクタム・アンピシリン"]
[1282,"TAZ/PIPC:タゾバクタム・ピペラシリン"]
[1286,"ABPC+MCIPC:クロキサシリン・アンピシリン"]
[1291,"ABPC+MＤIPC:ジクロキサシリン・アンピシリン"]
[1300,"Penems:ペネム系"]
[1301,"FRPM:ファロペネム"]
[1306,"RIPM-AC:リティペネム・アコキシル"]
[1400,"Carbapenems:カルバペネム系"]
[1401,"IPM/CS:イミペネム・シラスタチン"]
[1406,"PAPM/BP:パニペネム・ベタミプロン"]
[1411,"MEPM:メロペネム三水和物"]
[1416,"BIPM:ビアペネム"]
[1421,"DRPM:ドリペネム水和物"]
[1426,"TBPM-PI:テビペネム・ピボキシル"]
[1450,"Carbacephems:カルバセフェム系"]
[1451,"LCBF:ロラカルベフ"]
[1500,"Cephems:セフェム系"]
[1501,"CED:セフラジン"]
[1502,"CEG:セファログリシン"]
[1506,"CEX:セファレキシン"]
[1511,"CFT:セファトリジン"]
[1516,"CXD:セフロキサジン"]
[1521,"CCL:セファクロル"]
[1526,"CDX:セファドロキシル"]
[1531,"CER:セファロリジン"]
[1536,"CET:セファロチン"]
[1537,"CEZ:セファゾリン"]
[1541,"CEPR:セファピリン"]
[1542,"CEC:セファセトリル"]
[1543,"CTZ:セフチゾール"]
[1546,"CTM:セフォチアム"]
[1547,"CTM-HE:セフォチアム・ヘキセチル"]
[1551,"CXM:セフロキシム"]
[1553,"CXM-AX:セフロキシム・アキセチル"]
[1556,"CMD:セファマンドール"]
[1561,"CFDN:セフジニル"]
[1562,"CFPZ:セフプロジル"]
[1566,"CEMT-PI:セフェタメト・ピボキシル"]
[1571,"CETB:セフチブテン"]
[1576,"CDTR-PI:セフジトレン・ピボキシル"]
[1581,"CFIX:セフィキシム"]
[1586,"CFTM-PI:セフテラム・ピボキシル"]
[1591,"CPDX-PR:セフポドキシム・プロキセチル"]
[1596,"CFPN-PI:セフカペン・ピボキシル"]
[1601,"CMZ:セフメタゾール"]
[1606,"CFX:セフォキシチン"]
[1611,"CTT:セフォテタン"]
[1616,"CMNX:セフミノクス"]
[1621,"CBPZ:セフブペラゾン"]
[1626,"CPM:セフピラミド"]
[1631,"CFS:セフスロジン"]
[1636,"CTX:セフォタキシム"]
[1641,"CPZ:セフォペラゾン"]
[1646,"CMX:セフメノキシム"]
[1651,"CZX:セフチゾキシム"]
[1656,"CTRX:セフトリアキソン"]
[1657,"CPIZ:セフピミゾール"]
[1658,"CZON:セフゾナム"]
[1661,"CAZ:セフタジジム"]
[1666,"CDZM:セフォジジム"]
[1671,"CPR:セフピロム"]
[1676,"CZOP:セフォゾプラン"]
[1681,"CFPM:セフェピム"]
[1682,"CFCL:セフクリジン"]
[1686,"CFSL:セフォセリス"]
[1691,"SBT/CPZ:スルバクタム・セフォペラゾン"]
[1696,"LMOX:ラタモキセフ"]
[1701,"FMOX:フロモキセフ"]
[1706,"セフマチレン:セフマチレン"]
[1800,"Aminoglycosides:アミノグリコシド系"]
[1801,"KM:カナマイシン"]
[1806,"FRM:フラジオマイシン"]
[1811,"SM:ストレプトマイシン"]
[1816,"AMK:アミカシン"]
[1821,"GM:ゲンタマイシン"]
[1826,"AKM:ベカナマイシン"]
[1827,"LVDM:リビドマイシン"]
[1828,"PRM:パロモマイシン"]
[1831,"RSM:リボスタマイシン"]
[1836,"DKB:ジベカシン"]
[1841,"TOB:トブラマイシン"]
[1846,"SISO:シソマイシン"]
[1851,"MCR:ミクロノマイシン"]
[1856,"ASTM:アストロマイシン"]
[1861,"NTL:ネチルマイシン"]
[1866,"ISP:イセパマイシン"]
[1871,"ABK:アルベカシン"]
[1876,"SPCM:スペクチノマイシン"]
[1881,"フラジオマイシン・トリプシン:フラジオマイシン・トリプシン"]
[1886,"フラジオマイシン・プレドニゾロン:フラジオマイシン・プレドニゾロン"]
[1900,"Macrolides:マクロライド系"]
[1901,"EM:エリスロマイシン"]
[1902,"OL:オレアンドマイシン"]
[1906,"RXM:ロキシスロマイシン"]
[1911,"CAM:クラリスロマイシン"]
[1916,"LM:キタサマイシン"]
[1921,"JM:ジョサマイシン"]
[1926,"AC-SPM:アセチルスピラマイシン"]
[1931,"MDM:ミデカマイシン"]
[1936,"RKM:ロキタマイシン"]
[1941,"AZM:アジスロマイシン"]
[1950,"Ketolides:ケトライド系"]
[1951,"TEL:テリスロマイシン"]
[2000,"Lincomycins:リンコマイシン系"]
[2001,"LCM:リンコマイシン"]
[2006,"CLDM:クリンダマイシン"]
[2100,"Tetracyclines/Glycylcyclines:テトラサイクリン系/グリシルサイクリン系"]
[2101,"TC:テトラサクリン"]
[2106,"OTC:オキシテトラサイクリン"]
[2107,"MTC:メタサイクリン"]
[2111,"DMCTC:デメチルクロルテトラサイクリン"]
[2116,"DOXY:ドキシサイクリン"]
[2121,"MINO:ミノサイクリン"]
[2131,"TGC:チゲサイクリン"]
[2200,"Chloramphenicols:クロラムフェニコール系"]
[2201,"CP:クロラムフェニコール"]
[2203,":クロラムフェニコール、フラジオマイシン配合"]
[2206,"TP:チアンフェニコール"]
[2300,"Glycopeptides/Peptides/Lipopeptides:グリコペプチド系/ペプチド系/リポペプチド系"]
[2301,"VCM:バンコマイシン"]
[2306,"TEIC:テイコプラニン"]
[2311,"CL:コリスチン"]
[2316,"PL-B:ポリミキシンB"]
[2321,"BC:バシトラシン、フラジオマイシン配合"]
[2331,"DAP:ダプトマイシン"]
[2400,"Quinolones:キノロン系"]
[2401,"NA:ナリジクス酸"]
[2406,"PA:ピロミド酸"]
[2411,"PPA:ピペミド酸三水和物"]
[2412,"MLX:ミロキサシン"]
[2416,"CINX:シノキサシン"]
[2500,"Fluoroquinolones:フルオロキノロン系"]
[2501,"NFLX:ノルフロキサシン"]
[2506,"ENX:エノキサシン"]
[2511,"OFLX:オフロキサシン"]
[2516,"LVFX:レボフロキサシン"]
[2517,"NDFX:ナジフロキサシン"]
[2518,"TMFX:テマフロキサシン"]
[2521,"CPFX:シプロフロキサシン"]
[2526,"LFLX:ロメフロキサシン"]
[2531,"TFLX:トシル酸トスフロキサシン"]
[2536,"FLRX:フレロキサシン"]
[2541,"SPFX:スパルフロキサシン"]
[2551,"GPFX:グレパフロキサシン"]
[2556,"PUFX:プルリフロキサシン"]
[2561,"GFLX:ガチフロキサシン"]
[2566,"STFX:シタフロキサシン"]
[2571,"BLFX:バロフロキサシン"]
[2576,"PZFX:パズフロキサシン"]
[2577,"エンフロキサシン:エンフロキサシン"]
[2578,"MFLX:モキシフロキサシン"]
[2579,"GRNX:ガレノキサシン"]
[2600,":その他の抗菌薬"]
[2601,"FOM:ホスホマイシン"]
[2602,"CMRM:クーママイシン"]
[2603,"EDC:エンラマイシン"]
[2604,"KSM:カスガマイシン"]
[2607,"MKM:ミカマイシン"]
[2608,"FA:フシジン酸"]
[2609,"NB:ノボビオシン"]
[2611,"MUP:ムピロシン"]
[2612,"RCT:リストセチン"]
[2613,"NF:ニトロフラゾン"]
[2616,"LZD:リネゾリド"]
[2621,"QPR/DPR:キヌプリスチン・ダルホプリスチン"]
[2626,":ヘキサミン"]
[2700,":サルファ薬"]
[2701,"メチゾール:スルファメチゾール"]
[2706,"メトキサゾール:スルファメトキサゾール"]
[2711,"モノメトキシン:スルファモノメトキシン"]
[2716,"ジメトキシン:スルファジメトキシン"]
[2721,"サラゾピリン:サラゾスルファピリジン"]
[2726,"ST:ST合剤"]
[2800,":抗結核薬"]
[2801,"INH:イソニアジド"]
[2806,"IHMS:イソニアジドメタンスルホン酸"]
[2811,"PAS:パラアミノサリチル酸カルシウム・アルミノパラアミノサリチル酸カルシウム"]
[2816,"PZA:ピラジナミド"]
[2821,"EB:エタンブトール"]
[2826,"RFP:リファンピシン"]
[2828,"RBT:リファブチン"]
[2831,"ETH:エチオナミド"]
[2836,"CS:サイクロセリン"]
[2841,"EVM:エンビオマイシン"]
[2846,"PTH:プロチオナミド"]
[2900,":抗真菌薬"]
[2901,"AMPH-B:アムホテリシンB"]
[2906,"5-FC:フルシトシン"]
[2911,"MCZ:ミコナゾール"]
[2916,"FLCZ:フルコナゾール"]
[2917,"F-FLCZ:ホスフルコナゾール"]
[2921,"ITCZ:イトラコナゾール"]
[2926,"GRF:グリセオフルビン"]
[2931,"NYS:ナイスタチン"]
[2936,"テルビナフィン:テルビナフィン"]
[2941,"TRM:トリコマイシン"]
[2946,"PMR:ピマリシン"]
[2951,"クロトリマゾール:クロトリマゾール"]
[2956,"エコナゾール:エコナゾール"]
[2961,"イソコナゾール:イソコナゾール"]
[2966,"スルコナゾール:スルコナゾール"]
[2971,"オキシコナゾール:オキシコナゾール"]
[2976,"CCZ:クロコナゾール"]
[2981,"ビホナゾール:ビホナゾール"]
[2986,"KCZ:ケトコナゾール"]
[2991,"ネチコナゾール:ネチコナゾール"]
[2996,"ラノコナゾール:ラノコナゾール"]
[3001,"トルナフタート:トルナフタート"]
[3006,"フェニルヨード:フェニルヨード"]
[3011,"シッカニン:シッカニン"]
[3016,"シクロピロクス:シクロピロクスオラミン"]
[3021,"トルシクラート:トルシクラート"]
[3026,"ブテナフィン:ブテナフィン"]
[3031,"アモロルフィン:アモロルフィン"]
[3036,"リラナフタート:リラナフタート"]
[3041,"MCFG:ミカファンギン"]
[3046,"VRCZ:ボリコナゾール"]
[3051,"ルリコナゾール:ルリコナゾール"]
[3100,":抗寄生虫薬"]
[3101,"サントニン:サントニン"]
[3106,"カルバマジン:クエン酸ジエチルカルバマジン"]
[3111,"ピランテル:パモ酸ピランテル"]
[3116,"チアベンダゾール:チアベンダゾール"]
[3121,"メベンダゾール:メベンダゾール"]
[3126,"プラジカンテル:プラジカンテル"]
[3131,"アルベンダゾール:アルベンダゾール"]
[3136,"キニーネ:キニーネ"]
[3141,"スルファドキシン:スルファドキシン・ピリメタミン配合"]
[3146,"メトロニダゾール:メトロニダゾール"]
[3151,"チニダゾール:チニダゾール"]
[3156,"ペンタミジン:イセチオン酸ペンタミジン"]
[3161,"アンチモンナトリウム:酒石酸アンチモンナトリウム"]
[3166,"イベルメクチン:イベルメクチン"]
[3171,"メフロキン:塩酸メフロキン"]

{"sheet":"入力規則","index":10,"n_rows":7,"n_cols":4,"rows_kept":7,"cut":false,"hidden":false,"merged":[]}
["入院外来","検査方法","MIC仕切記号","SIR判定"]
[]
["入院","微量液体希釈法(MIC)","<","S"]
["外来","ディスク法(阻止円径)",">","I"]
[null,"その他(SIR判定のみ)","≦","R"]
[null,null,"≧"]
[null,null,"="]